Workbook

Sheet Interfaz
C5: POBLACIÓN ASIGNADA SEGÚN CENSOS INEI - RENIEC - PN - CNV - 2016
C10: RED INTEGRADA DE SALUD HUAURA OYÓN
A22: Elaboración: Área de Estadística - RIS Huaura Oyón.
A23: NOTA: LA POBLACION ESTIMADA DE EDADES SIMPLES Y GRUPOS DE EDAD DE DISTRITOS, CORRESPONDEN A CIFRAS REFERENCIALES HASTA OBTENER LAS CIFRAS DE LAS PROYECCIONES DEL INEI
A26: OFICINA DE GESTION DE LA INFORMACIÓN - MINISTERIO DE SALUD
R27: Versión1.030

Sheet Poblacion
C1: 1 | D1: 2 | E1: 3 | F1: 4 | G1: 5 | H1: 6 | I1: 7 | J1: 8 | K1: 9 | L1: 10 | M1: 11 | N1: 12 | O1: 13 | P1: 14 | Q1: 15 | R1: 16 | S1: 17 | T1: 18 | U1: 19 | V1: 20 | W1: 21 | X1: 22 | Y1: 23 | Z1: 24 | AA1: 25 | AB1: 26 | AC1: 27 | AD1: 28 | AE1: 29 | AF1: 30 | AG1: 31 | AH1: 32 | AI1: 33 | AJ1: 34 | AK1: 35 | AL1: 36 | AM1: 37 | AN1: 38 | AO1: 39 | AP1: 40 | AQ1: 41 | AR1: 42 | AS1: 43 | AT1: 44 | AU1: 45 | AV1: 46 | AW1: 47 | AX1: 48 | AY1: 49 | AZ1: 50 | BA1: 51 | BB1: 52 | BC1: 53 | BD1: 54 | BE1: 55 | BF1: 56 | BG1: 57 | BH1: 58 | BI1: 59 | BJ1: 60 | BK1: 61 | BL1: 62 | BM1: 63 | BN1: 64 | BO1: 65 | BP1: 66 | BQ1: 67 | BR1: 68 | BS1: 69 | BT1: 70 | BX1: 77 | BY1: 78 | BZ1: 79 | CA1: 80 | CB1: 81 | CC1: 82 | CD1: 83 | CE1: 84 | CF1: 85 | CG1: 86 | CH1: 87 | CI1: 88 | CJ1: 89 | CK1: 90 | CL1: 91 | CM1: 92 | CN1: 93 | CO1: 94 | CP1: 95 | CQ1: 96 | CR1: 97 | CS1: 98 | CT1: 99 | CU1: 106 | CV1: 107 | CW1: 108 | CX1: 109 | CY1: 110 | CZ1: 111
AE2: POBLACIÓN ESTIMADA POR GRUPOS DE EDAD, SEGÚN PROVINCIAS DISTRITOS Y ESTABLECIMIENTOS DE SALUD
AE3: RED INTEGRADA DE SALUD HUAURA OYON - AÑO 2016 | BN3: MAS GRUPOS DE EDAD
AE4: EDADES PUNTUALES Y GRUPOS DE EDAD
C5: N° | E5: DIRECCION DE SALUD | F5: TOTAL GENERAL | H5: TOTAL MASCULINO | I5: TOTAL FEMENINO | K5: EDAD | M5: EDAD | O5: EDAD | Q5: EDAD | S5: EDAD | U5: EDAD | W5: EDAD | Y5: EDAD | AA5: EDAD | AC5: EDAD | AE5: EDAD | AG5: EDAD | AI5: EDAD | AK5: EDAD | AM5: EDAD | AO5: EDAD | AQ5: EDAD | AS5: EDAD | AU5: EDAD | AW5: EDAD | AY5: EDAD | BA5: NACIMIENTOS | BB5: 28 DIAS | BC5: POBLACION FEMENINA TOTAL | BD5: POBLACION FEMENINA | BI5: menor de 1 Año | BJ5: Pre escolar (1-4) | BK5: Niño (0 - 11) | BL5: Escolar (05 - 17) | BM5: Adolescente (12 - 17) | BN5: Adulto Joven (18 - 29) | BO5: Adulto (30-59) | BP5: Adu.Mayor (60 a MAS) | BR5: Escolar (05 - 09) | BS5: Adolescente (10 - 19) | BT5: Adulto (20-59)
A6: UBIGEO | E6: PROVINCIA | K6: 0 | M6: 1 | O6: 2 | Q6: 3 | S6: 4 | U6: 5 - 9 | V6: 5 - 9 | W6: 10 - 14 | X6: 10 - 14 | Y6: 15 - 19 | Z6: 20 - 24 | AA6: 20- 24 | AB6: 20 - 24 | AC6: 25 - 29 | AE6: 30 - 34 | AG6: 35 - 39 | AI6: 40 - 44 | AK6: 45 - 49 | AM6: 50 - 54 | AO6: 55 - 59 | AQ6: 60 - 64 | AS6: 65-69 | AU6: 70-74 | AW6: 75-79 | AY6: 80 - + | BD6: 10-14 | BE6: 15-19 | BF6: 20-49 | BG6: GESTANTE
B7: Microredes | D7: RENAES | E7: DISTRITO | K7: M | L7: F | M7: M | N7: F | O7: M | P7: F | Q7: M | R7: F | S7: M | T7: F | U7: M | V7: F | W7: M | X7: F | Y7: M | Z7: F | AA7: M | AB7: F | AC7: M | AD7: F | AE7: M | AF7: F | AG7: M | AH7: F | AI7: M | AJ7: F | AK7: M | AL7: F | AM7: M | AN7: F | AO7: M | AP7: F | AQ7: M | AR7: F | AS7: M | AT7: F | AU7: M | AV7: F | AW7: M | AX7: F | AY7: M | AZ7: F
A8: 150000 | C8: 1 | E8: HUAURA - OYON | F8: 246685 | H8: 122146 | I8: 124539 | K8: 2161 | L8: 2203 | M8: 2060 | N8: 2100 | O8: 1994 | P8: 2033 | Q8: 1960 | R8: 1999 | S8: 1953 | T8: 1992 | U8: 10284 | V8: 10485 | W8: 11508 | X8: 11734 | Y8: 10934 | Z8: 11148 | AA8: 10681 | AB8: 10890 | AC8: 9265 | AD8: 9447 | AE8: 8637 | AF8: 8807 | AG8: 8764 | AH8: 8935 | AI8: 7588 | AJ8: 7737 | AK8: 6873 | AL8: 7008 | AM8: 6196 | AN8: 6318 | AO8: 5372 | AP8: 5477 | AQ8: 4485 | AR8: 4572 | AS8: 3731 | AT8: 3804 | AU8: 3129 | AV8: 3191 | AW8: 2225 | AX8: 2268 | AY8: 2346 | AZ8: 2391 | BA8: 4479 | BB8: 335 | BC8: 64764 | BD8: 11648 | BE8: 11139 | BF8: 53624 | BG8: 5657 | BI8: =SUM(K8:L8) -> 4364 | BJ8: =SUM(M8:T8) -> 16091 | BK8: =SUM(K8:AH8) -> 161974 | BL8: =SUM(U8:AT8) -> 210680 | BM8: =SUM(AI8:AT8) -> 69161 | BN8: =SUM(AU8:AZ8) -> 15550 | BO8: =SUM(#REF!) ->  | BP8: =SUM(#REF!) ->  | BR8: =SUM(U8:AD8) -> 106376 | BS8: =SUM(AE8:AX8) -> 115117 | BT8: =SUM(AY8:AZ8) -> 4737
A9: 150800 | C9: 2 | D9: 150800 | E9: PROVINCIA HUAURA | F9: 222422 | H9: 110132 | I9: 112290 | K9: 1905 | L9: 1943 | M9: 1814 | N9: 1849 | O9: 1754 | P9: 1789 | Q9: 1724 | R9: 1757 | S9: 1717 | T9: 1750 | U9: 9067 | V9: 9244 | W9: 10262 | X9: 10464 | Y9: 9981 | Z9: 10176 | AA9: 9764 | AB9: 9956 | AC9: 8346 | AD9: 8510 | AE9: 7772 | AF9: 7925 | AG9: 7830 | AH9: 7983 | AI9: 6896 | AJ9: 7031 | AK9: 6226 | AL9: 6348 | AM9: 5669 | AN9: 5780 | AO9: 4926 | AP9: 5022 | AQ9: 4129 | AR9: 4209 | AS9: 3369 | AT9: 3435 | AU9: 2837 | AV9: 2893 | AW9: 1992 | AX9: 2031 | AY9: 2152 | AZ9: 2195 | BA9: 3949 | BB9: 296 | BC9: 58920 | BD9: 10334 | BE9: 10124 | BF9: 48796 | BG9: 4974 | BI9: 3848 | BJ9: 14154 | BK9: 145282 | BL9: 190320 | BM9: 63040 | BN9: 14100 | BO9: =SUM(#REF!) ->  | BP9: =SUM(#REF!) ->  | BR9: 95770 | BS9: 104303 | BT9: 4347
A10: 150801 | C10: 3 | D10: 150802 | E10: DISTRITO HUACHO | F10: 59431 | H10: 29426 | I10: 30005 | K10: 462 | L10: 472 | M10: 434 | N10: 443 | O10: 415 | P10: 424 | Q10: 405 | R10: 413 | S10: 401 | T10: 409 | U10: 2133 | V10: 2175 | W10: 2484 | X10: 2532 | Y10: 2463 | Z10: 2511 | AA10: 2516 | AB10: 2565 | AC10: 2158 | AD10: 2201 | AE10: 2022 | AF10: 2062 | AG10: 2114 | AH10: 2155 | AI10: 1935 | AJ10: 1973 | AK10: 1798 | AL10: 1834 | AM10: 1756 | AN10: 1791 | AO10: 1500 | AP10: 1529 | AQ10: 1230 | AR10: 1254 | AS10: 1021 | AT10: 1041 | AU10: 863 | AV10: 879 | AW10: 630 | AX10: 643 | AY10: 686 | AZ10: 699 | BA10: 958 | BB10: 72 | BC10: 15542 | BD10: 2496 | BE10: 2436 | BF10: 13106 | BG10: 1201 | BI10: 934 | BJ10: 3344 | BK10: 36369 | BL10: 50753 | BM10: 18662 | BN10: 4400 | BO10: =SUM(#REF!) ->  | BP10: =SUM(#REF!) ->  | BR10: 23738 | BS10: 30030 | BT10: 1385
B11: 00 | C11: 4 | D11: 7639 | E11: HOSPITAL HUACHO | F11: 44573 | H11: 22070 | I11: 22503 | K11: 347 | L11: 353 | M11: 326 | N11: 332 | O11: 311 | P11: 318 | Q11: 304 | R11: 309 | S11: 301 | T11: 306 | U11: 1600 | V11: 1632 | W11: 1862 | X11: 1899 | Y11: 1846 | Z11: 1883 | AA11: 1888 | AB11: 1924 | AC11: 1619 | AD11: 1651 | AE11: 1517 | AF11: 1547 | AG11: 1585 | AH11: 1617 | AI11: 1451 | AJ11: 1480 | AK11: 1349 | AL11: 1375 | AM11: 1317 | AN11: 1343 | AO11: 1125 | AP11: 1147 | AQ11: 922 | AR11: 941 | AS11: 766 | AT11: 780 | AU11: 647 | AV11: 659 | AW11: 473 | AX11: 482 | AY11: 514 | AZ11: 525 | BA11: 718 | BB11: 54 | BC11: 11656 | BD11: 1872 | BE11: 1827 | BF11: 9829 | BG11: 901 | BI11: 700 | BJ11: 2507 | BK11: 27277 | BL11: 38066 | BM11: 13996 | BN11: 3300 | BO11: =SUM(#REF!) ->  | BP11: =SUM(#REF!) ->  | BR11: 17804 | BS11: 22523 | BT11: 1039
B12: 02 | C12: 5 | D12: 5679 | E12: C.S. MANZANARES | F12: 14858 | H12: 7355 | I12: 7503 | K12: 116 | L12: 118 | M12: 108 | N12: 111 | O12: 104 | P12: 106 | Q12: 102 | R12: 103 | S12: 101 | T12: 102 | U12: 533 | V12: 543 | W12: 621 | X12: 634 | Y12: 616 | Z12: 629 | AA12: 628 | AB12: 641 | AC12: 539 | AD12: 550 | AE12: 505 | AF12: 515 | AG12: 528 | AH12: 539 | AI12: 484 | AJ12: 493 | AK12: 450 | AL12: 458 | AM12: 439 | AN12: 448 | AO12: 375 | AP12: 382 | AQ12: 307 | AR12: 314 | AS12: 255 | AT12: 261 | AU12: 216 | AV12: 220 | AW12: 157 | AX12: 161 | AY12: 171 | AZ12: 175 | BA12: 240 | BB12: 18 | BC12: 3886 | BD12: 624 | BE12: 609 | BF12: 3277 | BG12: 300 | BI12: 234 | BJ12: 837 | BK12: 9092 | BL12: 12687 | BM12: 4666 | BN12: 1100 | BO12: =SUM(#REF!) ->  | BP12: =SUM(#REF!) ->  | BR12: 5934 | BS12: 7507 | BT12: 346
A13: 150802 | C13: 6 | D13: 150802 | E13: DISTRITO AMBAR | F13: 2779 | H13: 1377 | I13: 1402 | K13: 20 | L13: 20 | M13: 24 | N13: 24 | O13: 27 | P13: 28 | Q13: 30 | R13: 30 | S13: 32 | T13: 32 | U13: 170 | V13: 173 | W13: 150 | X13: 152 | Y13: 103 | Z13: 105 | AA13: 109 | AB13: 112 | AC13: 84 | AD13: 86 | AE13: 83 | AF13: 85 | AG13: 82 | AH13: 83 | AI13: 68 | AJ13: 70 | AK13: 77 | AL13: 79 | AM13: 69 | AN13: 71 | AO13: 58 | AP13: 59 | AQ13: 54 | AR13: 55 | AS13: 49 | AT13: 49 | AU13: 36 | AV13: 36 | AW13: 24 | AX13: 24 | AY13: 28 | AZ13: 29 | BA13: 41 | BB13: 3 | BC13: 638 | BD13: 148 | BE13: 107 | BF13: 531 | BG13: 54 | BI13: 40 | BJ13: 227 | BK13: 1844 | BL13: 2335 | BM13: 758 | BN13: 177 | BO13: =SUM(#REF!) ->  | BP13: =SUM(#REF!) ->  | BR13: 1244 | BS13: 1211 | BT13: 57
B14: 01 | C14: 7 | D14: 5680 | E14: C.S. AMBAR | F14: 1667 | H14: 826 | I14: 841 | K14: 12 | L14: 12 | M14: 14 | N14: 15 | O14: 16 | P14: 17 | Q14: 18 | R14: 18 | S14: 19 | T14: 19 | U14: 102 | V14: 103 | W14: 90 | X14: 91 | Y14: 61 | Z14: 63 | AA14: 66 | AB14: 68 | AC14: 51 | AD14: 51 | AE14: 50 | AF14: 51 | AG14: 49 | AH14: 50 | AI14: 41 | AJ14: 42 | AK14: 47 | AL14: 47 | AM14: 42 | AN14: 42 | AO14: 35 | AP14: 35 | AQ14: 32 | AR14: 33 | AS14: 29 | AT14: 30 | AU14: 21 | AV14: 22 | AW14: 14 | AX14: 15 | AY14: 17 | AZ14: 17 | BA14: 25 | BB14: 2 | BC14: 383 | BD14: 89 | BE14: 64 | BF14: 319 | BG14: 32 | BI14: 24 | BJ14: 136 | BK14: 1106 | BL14: 1401 | BM14: 455 | BN14: 106 | BO14: =SUM(#REF!) ->  | BP14: =SUM(#REF!) ->  | BR14: 746 | BS14: 727 | BT14: 34
B15: 01 | C15: 8 | D15: 5681 | E15: P.S. AYNACA | F15: 1112 | H15: 550 | I15: 562 | K15: 8 | L15: 8 | M15: 9 | N15: 10 | O15: 11 | P15: 11 | Q15: 12 | R15: 12 | S15: 13 | T15: 13 | U15: 68 | V15: 70 | W15: 60 | X15: 61 | Y15: 42 | Z15: 42 | AA15: 43 | AB15: 44 | AC15: 34 | AD15: 34 | AE15: 33 | AF15: 34 | AG15: 33 | AH15: 33 | AI15: 27 | AJ15: 28 | AK15: 31 | AL15: 31 | AM15: 28 | AN15: 28 | AO15: 23 | AP15: 24 | AQ15: 22 | AR15: 22 | AS15: 19 | AT15: 20 | AU15: 14 | AV15: 15 | AW15: 9 | AX15: 10 | AY15: 11 | AZ15: 12 | BA15: 16 | BB15: 1 | BC15: 255 | BD15: 59 | BE15: 43 | BF15: 212 | BG15: 22 | BI15: 16 | BJ15: 91 | BK15: 738 | BL15: 934 | BM15: 303 | BN15: 71 | BO15: =SUM(#REF!) ->  | BP15: =SUM(#REF!) ->  | BR15: 498 | BS15: 484 | BT15: 23
A16: 150803 | C16: 9 | D16: 150803 | E16: DISTRITO CARQUIN | F16: 6905 | H16: 3418 | I16: 3487 | K16: 62 | L16: 63 | M16: 59 | N16: 61 | O16: 58 | P16: 59 | Q16: 56 | R16: 58 | S16: 55 | T16: 56 | U16: 270 | V16: 276 | W16: 276 | X16: 282 | Y16: 281 | Z16: 287 | AA16: 329 | AB16: 335 | AC16: 304 | AD16: 310 | AE16: 290 | AF16: 296 | AG16: 251 | AH16: 256 | AI16: 242 | AJ16: 246 | AK16: 183 | AL16: 186 | AM16: 177 | AN16: 181 | AO16: 144 | AP16: 147 | AQ16: 113 | AR16: 116 | AS16: 104 | AT16: 107 | AU16: 72 | AV16: 73 | AW16: 43 | AX16: 43 | AY16: 49 | AZ16: 49 | BA16: 128 | BB16: 10 | BC16: 1834 | BD16: 296 | BE16: 322 | BF16: 1512 | BG16: 164 | BI16: 125 | BJ16: 462 | BK16: 4630 | BL16: 5989 | BM16: 1946 | BN16: 329 | BO16: =SUM(#REF!) ->  | BP16: =SUM(#REF!) ->  | BR16: 2950 | BS16: 3270 | BT16: 98
B17: 02 | C17: 10 | D17: 5664 | E17: P.S. CARQUIN | F17: 6905 | H17: 3418 | I17: 3487 | K17: 62 | L17: 63 | M17: 59 | N17: 61 | O17: 58 | P17: 59 | Q17: 56 | R17: 58 | S17: 55 | T17: 56 | U17: 270 | V17: 276 | W17: 276 | X17: 282 | Y17: 281 | Z17: 287 | AA17: 329 | AB17: 335 | AC17: 304 | AD17: 310 | AE17: 290 | AF17: 296 | AG17: 251 | AH17: 256 | AI17: 242 | AJ17: 246 | AK17: 183 | AL17: 186 | AM17: 177 | AN17: 181 | AO17: 144 | AP17: 147 | AQ17: 113 | AR17: 116 | AS17: 104 | AT17: 107 | AU17: 72 | AV17: 73 | AW17: 43 | AX17: 43 | AY17: 49 | AZ17: 49 | BA17: 128 | BB17: 10 | BC17: 1834 | BD17: 296 | BE17: 322 | BF17: 1512 | BG17: 164 | BI17: 125 | BJ17: 462 | BK17: 4630 | BL17: 5989 | BM17: 1946 | BN17: 329 | BO17: =SUM(#REF!) ->  | BP17: =SUM(#REF!) ->  | BR17: 2950 | BS17: 3270 | BT17: 98
A18: 150804 | C18: 11 | D18: 150804 | E18: DISTRITO CHECRAS | F18: 1808 | H18: 894 | I18: 914 | K18: 14 | L18: 15 | M18: 13 | N18: 13 | O18: 12 | P18: 12 | Q18: 12 | R18: 12 | S18: 12 | T18: 12 | U18: 67 | V18: 68 | W18: 81 | X18: 82 | Y18: 52 | Z18: 54 | AA18: 35 | AB18: 36 | AC18: 44 | AD18: 45 | AE18: 40 | AF18: 41 | AG18: 61 | AH18: 62 | AI18: 56 | AJ18: 57 | AK18: 52 | AL18: 54 | AM18: 70 | AN18: 71 | AO18: 52 | AP18: 54 | AQ18: 54 | AR18: 56 | AS18: 45 | AT18: 45 | AU18: 59 | AV18: 61 | AW18: 33 | AX18: 34 | AY18: 30 | AZ18: 30 | BA18: 30 | BB18: 2 | BC18: 343 | BD18: 76 | BE18: 43 | BF18: 300 | BG18: 40 | BI18: 29 | BJ18: 98 | BK18: 895 | BL18: 1434 | BM18: 666 | BN18: 247 | BO18: =SUM(#REF!) ->  | BP18: =SUM(#REF!) ->  | BR18: 564 | BS18: 1057 | BT18: 60
B19: 05 | C19: 12 | D19: 5663 | E19: P.S. PUÑUN | F19: 1808 | H19: 894 | I19: 914 | K19: 14 | L19: 15 | M19: 13 | N19: 13 | O19: 12 | P19: 12 | Q19: 12 | R19: 12 | S19: 12 | T19: 12 | U19: 67 | V19: 68 | W19: 81 | X19: 82 | Y19: 52 | Z19: 54 | AA19: 35 | AB19: 36 | AC19: 44 | AD19: 45 | AE19: 40 | AF19: 41 | AG19: 61 | AH19: 62 | AI19: 56 | AJ19: 57 | AK19: 52 | AL19: 54 | AM19: 70 | AN19: 71 | AO19: 52 | AP19: 54 | AQ19: 54 | AR19: 56 | AS19: 45 | AT19: 45 | AU19: 59 | AV19: 61 | AW19: 33 | AX19: 34 | AY19: 30 | AZ19: 30 | BA19: 30 | BB19: 2 | BC19: 343 | BD19: 76 | BE19: 43 | BF19: 300 | BG19: 40 | BI19: 29 | BJ19: 98 | BK19: 895 | BL19: 1434 | BM19: 666 | BN19: 247 | BO19: =SUM(#REF!) ->  | BP19: =SUM(#REF!) ->  | BR19: 564 | BS19: 1057 | BT19: 60
A20: 150805 | C20: 13 | D20: 150805 | E20: DISTRITO HUALMAY | F20: 29028 | H20: 14374 | I20: 14654 | K20: 249 | L20: 254 | M20: 234 | N20: 238 | O20: 224 | P20: 228 | Q20: 218 | R20: 223 | S20: 217 | T20: 221 | U20: 1162 | V20: 1185 | W20: 1348 | X20: 1374 | Y20: 1274 | Z20: 1299 | AA20: 1272 | AB20: 1296 | AC20: 1089 | AD20: 1110 | AE20: 1021 | AF20: 1040 | AG20: 1049 | AH20: 1070 | AI20: 946 | AJ20: 964 | AK20: 780 | AL20: 796 | AM20: 736 | AN20: 751 | AO20: 669 | AP20: 683 | AQ20: 539 | AR20: 550 | AS20: 459 | AT20: 467 | AU20: 338 | AV20: 345 | AW20: 260 | AX20: 265 | AY20: 290 | AZ20: 295 | BA20: 516 | BB20: 39 | BC20: 7689 | BD20: 1337 | BE20: 1297 | BF20: 6392 | BG20: 647 | BI20: 503 | BJ20: 1803 | BK20: 18895 | BL20: 24929 | BM20: 8340 | BN20: 1793 | BO20: =SUM(#REF!) ->  | BP20: =SUM(#REF!) ->  | BR20: 12409 | BS20: 13728 | BT20: 585
B21: 02 | C21: 14 | D21: 5665 | E21: C.S. HUALMAY | F21: 14514 | H21: 7185 | I21: 7329 | K21: 125 | L21: 127 | M21: 117 | N21: 119 | O21: 112 | P21: 114 | Q21: 109 | R21: 112 | S21: 108 | T21: 111 | U21: 582 | V21: 593 | W21: 674 | X21: 688 | Y21: 637 | Z21: 650 | AA21: 635 | AB21: 648 | AC21: 544 | AD21: 554 | AE21: 510 | AF21: 520 | AG21: 524 | AH21: 535 | AI21: 472 | AJ21: 482 | AK21: 390 | AL21: 398 | AM21: 368 | AN21: 376 | AO21: 335 | AP21: 341 | AQ21: 270 | AR21: 275 | AS21: 229 | AT21: 234 | AU21: 169 | AV21: 173 | AW21: 130 | AX21: 132 | AY21: 145 | AZ21: 147 | BA21: 258 | BB21: 19 | BC21: 3845 | BD21: 668 | BE21: 648 | BF21: 3196 | BG21: 324 | BI21: 252 | BJ21: 902 | BK21: 9448 | BL21: 12464 | BM21: 4170 | BN21: 896 | BO21: =SUM(#REF!) ->  | BP21: =SUM(#REF!) ->  | BR21: 6205 | BS21: 6863 | BT21: 292
B22: 02 | C22: 15 | D22: 5666 | E22: P.S. DGO. MANDAMIENTO | F22: 10160 | H22: 5029 | I22: 5131 | K22: 87 | L22: 89 | M22: 82 | N22: 83 | O22: 78 | P22: 80 | Q22: 76 | R22: 78 | S22: 76 | T22: 77 | U22: 407 | V22: 414 | W22: 471 | X22: 481 | Y22: 446 | Z22: 454 | AA22: 446 | AB22: 454 | AC22: 381 | AD22: 389 | AE22: 357 | AF22: 365 | AG22: 367 | AH22: 375 | AI22: 331 | AJ22: 338 | AK22: 273 | AL22: 279 | AM22: 257 | AN22: 263 | AO22: 234 | AP22: 239 | AQ22: 189 | AR22: 192 | AS22: 160 | AT22: 164 | AU22: 118 | AV22: 121 | AW22: 91 | AX22: 93 | AY22: 102 | AZ22: 103 | BA22: 181 | BB22: 14 | BC22: 2691 | BD22: 468 | BE22: 454 | BF22: 2237 | BG22: 226 | BI22: 176 | BJ22: 630 | BK22: 6613 | BL22: 8726 | BM22: 2919 | BN22: 628 | BO22: =SUM(#REF!) ->  | BP22: =SUM(#REF!) ->  | BR22: 4343 | BS22: 4806 | BT22: 205
B23: 02 | C23: 16 | D23: 5667 | E23: P.S. CAMPO ALEGRE | F23: 4354 | H23: 2158 | I23: 2196 | K23: 37 | L23: 38 | M23: 35 | N23: 36 | O23: 34 | P23: 34 | Q23: 33 | R23: 33 | S23: 33 | T23: 33 | U23: 174 | V23: 177 | W23: 202 | X23: 206 | Y23: 191 | Z23: 195 | AA23: 191 | AB23: 194 | AC23: 164 | AD23: 167 | AE23: 153 | AF23: 156 | AG23: 157 | AH23: 161 | AI23: 142 | AJ23: 145 | AK23: 117 | AL23: 119 | AM23: 110 | AN23: 113 | AO23: 101 | AP23: 102 | AQ23: 81 | AR23: 82 | AS23: 69 | AT23: 70 | AU23: 51 | AV23: 51 | AW23: 39 | AX23: 40 | AY23: 44 | AZ23: 44 | BA23: 77 | BB23: 6 | BC23: 1153 | BD23: 201 | BE23: 195 | BF23: 959 | BG23: 97 | BI23: 75 | BJ23: 271 | BK23: 2834 | BL23: 3739 | BM23: 1251 | BN23: 269 | BO23: =SUM(#REF!) ->  | BP23: =SUM(#REF!) ->  | BR23: 1861 | BS23: 2059 | BT23: 88
A24: 150806 | C24: 17 | D24: 150806 | E24: DISTRITO HUAURA | F24: 35916 | H24: 17785 | I24: 18131 | K24: 316 | L24: 323 | M24: 300 | N24: 305 | O24: 289 | P24: 295 | Q24: 284 | R24: 290 | S24: 285 | T24: 290 | U24: 1531 | V24: 1560 | W24: 1815 | X24: 1850 | Y24: 1877 | Z24: 1913 | AA24: 1671 | AB24: 1703 | AC24: 1399 | AD24: 1427 | AE24: 1285 | AF24: 1310 | AG24: 1243 | AH24: 1267 | AI24: 1094 | AJ24: 1116 | AK24: 977 | AL24: 996 | AM24: 835 | AN24: 852 | AO24: 679 | AP24: 693 | AQ24: 549 | AR24: 559 | AS24: 455 | AT24: 464 | AU24: 404 | AV24: 411 | AW24: 249 | AX24: 254 | AY24: 248 | AZ24: 253 | BA24: 656 | BB24: 49 | BC24: 10022 | BD24: 1797 | BE24: 1876 | BF24: 8146 | BG24: 823 | BI24: 639 | BJ24: 2338 | BK24: 24828 | BL24: 31120 | BM24: 9269 | BN24: 1819 | BO24: =SUM(#REF!) ->  | BP24: =SUM(#REF!) ->  | BR24: 16746 | BS24: 15692 | BT24: 501
B25: 01 | C25: 18 | D25: 5682 | E25: C.S. HUAURA | F25: 16162 | H25: 8004 | I25: 8158 | K25: 143 | L25: 145 | M25: 135 | N25: 137 | O25: 130 | P25: 133 | Q25: 128 | R25: 131 | S25: 128 | T25: 130 | U25: 688 | V25: 701 | W25: 817 | X25: 832 | Y25: 843 | Z25: 860 | AA25: 753 | AB25: 767 | AC25: 630 | AD25: 642 | AE25: 578 | AF25: 590 | AG25: 560 | AH25: 570 | AI25: 492 | AJ25: 502 | AK25: 440 | AL25: 448 | AM25: 376 | AN25: 383 | AO25: 306 | AP25: 312 | AQ25: 247 | AR25: 252 | AS25: 205 | AT25: 209 | AU25: 181 | AV25: 185 | AW25: 112 | AX25: 115 | AY25: 112 | AZ25: 114 | BA25: 295 | BB25: 22 | BC25: 4511 | BD25: 808 | BE25: 843 | BF25: 3666 | BG25: 371 | BI25: 288 | BJ25: 1052 | BK25: 11171 | BL25: 14003 | BM25: 4172 | BN25: 819 | BO25: =SUM(#REF!) ->  | BP25: =SUM(#REF!) ->  | BR25: 7533 | BS25: 7063 | BT25: 226
B26: 01 | C26: 19 | D26: 5686 | E26: C.S. SOCORRO | F26: 13648 | H26: 6757 | I26: 6891 | K26: 120 | L26: 123 | M26: 114 | N26: 116 | O26: 110 | P26: 112 | Q26: 108 | R26: 110 | S26: 108 | T26: 110 | U26: 582 | V26: 593 | W26: 689 | X26: 703 | Y26: 714 | Z26: 727 | AA26: 635 | AB26: 647 | AC26: 532 | AD26: 542 | AE26: 488 | AF26: 498 | AG26: 472 | AH26: 482 | AI26: 416 | AJ26: 424 | AK26: 371 | AL26: 379 | AM26: 317 | AN26: 324 | AO26: 258 | AP26: 263 | AQ26: 208 | AR26: 213 | AS26: 173 | AT26: 176 | AU26: 153 | AV26: 157 | AW26: 95 | AX26: 96 | AY26: 94 | AZ26: 96 | BA26: 249 | BB26: 19 | BC26: 3808 | BD26: 683 | BE26: 713 | BF26: 3095 | BG26: 313 | BI26: 243 | BJ26: 888 | BK26: 9435 | BL26: 11826 | BM26: 3522 | BN26: 691 | BO26: =SUM(#REF!) ->  | BP26: =SUM(#REF!) ->  | BR26: 6364 | BS26: 5963 | BT26: 190
B27: 01 | C27: 20 | D27: 5683 | E27: P.S. HUMAYA | F27: 3592 | H27: 1780 | I27: 1812 | K27: 32 | L27: 32 | M27: 30 | N27: 31 | O27: 29 | P27: 29 | Q27: 28 | R27: 29 | S27: 29 | T27: 29 | U27: 153 | V27: 157 | W27: 182 | X27: 185 | Y27: 188 | Z27: 192 | AA27: 166 | AB27: 170 | AC27: 140 | AD27: 143 | AE27: 128 | AF27: 131 | AG27: 124 | AH27: 126 | AI27: 109 | AJ27: 112 | AK27: 98 | AL27: 99 | AM27: 84 | AN27: 85 | AO27: 68 | AP27: 69 | AQ27: 55 | AR27: 56 | AS27: 46 | AT27: 46 | AU27: 41 | AV27: 41 | AW27: 25 | AX27: 25 | AY27: 25 | AZ27: 25 | BA27: 66 | BB27: 5 | BC27: 1002 | BD27: 180 | BE27: 188 | BF27: 815 | BG27: 82 | BI27: 64 | BJ27: 234 | BK27: 2483 | BL27: 3112 | BM27: 927 | BN27: 182 | BO27: =SUM(#REF!) ->  | BP27: =SUM(#REF!) ->  | BR27: 1676 | BS27: 1568 | BT27: 50
B28: 01 | C28: 21 | D28: 5684 | E28: P.S. VILCAHUAURA | F28: 2155 | H28: 1066 | I28: 1089 | K28: 19 | L28: 19 | M28: 18 | N28: 18 | O28: 17 | P28: 18 | Q28: 17 | R28: 17 | S28: 17 | T28: 18 | U28: 92 | V28: 94 | W28: 109 | X28: 111 | Y28: 112 | Z28: 115 | AA28: 100 | AB28: 102 | AC28: 84 | AD28: 86 | AE28: 77 | AF28: 79 | AG28: 75 | AH28: 76 | AI28: 66 | AJ28: 68 | AK28: 58 | AL28: 60 | AM28: 50 | AN28: 51 | AO28: 41 | AP28: 41 | AQ28: 33 | AR28: 33 | AS28: 27 | AT28: 28 | AU28: 24 | AV28: 25 | AW28: 15 | AX28: 15 | AY28: 15 | AZ28: 15 | BA28: 39 | BB28: 3 | BC28: 601 | BD28: 108 | BE28: 113 | BF28: 489 | BG28: 49 | BI28: 38 | BJ28: 140 | BK28: 1490 | BL28: 1868 | BM28: 556 | BN28: 109 | BO28: =SUM(#REF!) ->  | BP28: =SUM(#REF!) ->  | BR28: 1005 | BS28: 942 | BT28: 30
B29: 01 | C29: 22 | D29: 5685 | E29: P.S. PEÑICO | F29: 359 | H29: 174 | I29: 185 | K29: 3 | L29: 3 | M29: 3 | N29: 3 | O29: 3 | P29: 3 | Q29: 3 | R29: 3 | S29: 3 | T29: 3 | U29: 15 | V29: 16 | W29: 18 | X29: 19 | Y29: 19 | Z29: 20 | AA29: 17 | AB29: 17 | AC29: 13 | AD29: 14 | AE29: 13 | AF29: 13 | AG29: 12 | AH29: 13 | AI29: 10 | AJ29: 11 | AK29: 10 | AL29: 10 | AM29: 8 | AN29: 9 | AO29: 7 | AP29: 7 | AQ29: 5 | AR29: 6 | AS29: 4 | AT29: 5 | AU29: 4 | AV29: 4 | AW29: 2 | AX29: 3 | AY29: 2 | AZ29: 3 | BA29: 7 | BB29: 0 | BC29: 100 | BD29: 18 | BE29: 19 | BF29: 81 | BG29: 8 | BI29: 6 | BJ29: 24 | BK29: 249 | BL29: 311 | BM29: 92 | BN29: 18 | BO29: =SUM(#REF!) ->  | BP29: =SUM(#REF!) ->  | BR29: 168 | BS29: 156 | BT29: 5
A30: 150807 | C30: 23 | D30: 150807 | E30: DISTRITO LEONCIO PRADO | F30: 2010 | H30: 995 | I30: 1015 | K30: 15 | L30: 15 | M30: 18 | N30: 19 | O30: 21 | P30: 21 | Q30: 22 | R30: 23 | S30: 23 | T30: 23 | U30: 109 | V30: 112 | W30: 79 | X30: 80 | Y30: 74 | Z30: 75 | AA30: 84 | AB30: 86 | AC30: 74 | AD30: 76 | AE30: 60 | AF30: 62 | AG30: 62 | AH30: 64 | AI30: 53 | AJ30: 55 | AK30: 59 | AL30: 60 | AM30: 58 | AN30: 59 | AO30: 38 | AP30: 38 | AQ30: 38 | AR30: 38 | AS30: 32 | AT30: 32 | AU30: 30 | AV30: 30 | AW30: 21 | AX30: 22 | AY30: 25 | AZ30: 25 | BA30: 31 | BB30: 2 | BC30: 469 | BD30: 90 | BE30: 70 | BF30: 399 | BG30: 42 | BI30: 30 | BJ30: 170 | BK30: 1297 | BL30: 1657 | BM30: 560 | BN30: 153 | BO30: =SUM(#REF!) ->  | BP30: =SUM(#REF!) ->  | BR30: 849 | BS30: 911 | BT30: 50
B31: 03 | C31: 24 | D31: 5778 | E31: P.S. AUQUIMARCA | F31: 101 | H31: 47 | I31: 54 | K31: 1 | L31: 1 | M31: 1 | N31: 1 | O31: 1 | P31: 1 | Q31: 1 | R31: 1 | S31: 1 | T31: 1 | U31: 5 | V31: 5 | W31: 4 | X31: 5 | Y31: 3 | Z31: 4 | AA31: 4 | AB31: 5 | AC31: 4 | AD31: 4 | AE31: 3 | AF31: 3 | AG31: 3 | AH31: 3 | AI31: 2 | AJ31: 3 | AK31: 3 | AL31: 3 | AM31: 3 | AN31: 3 | AO31: 2 | AP31: 2 | AQ31: 2 | AR31: 2 | AS31: 1 | AT31: 2 | AU31: 1 | AV31: 2 | AW31: 1 | AX31: 1 | AY31: 1 | AZ31: 2 | BA31: 2 | BB31: 0 | BC31: 23 | BD31: 5 | BE31: 4 | BF31: 20 | BG31: 2 | BI31: 2 | BJ31: 8 | BK31: 65 | BL31: 83 | BM31: 28 | BN31: 8 | BO31: =SUM(#REF!) ->  | BP31: =SUM(#REF!) ->  | BR31: 43 | BS31: 45 | BT31: 3
B32: 03 | C32: 25 | D32: 5779 | E32: P.S. PARAN | F32: 1005 | H32: 498 | I32: 507 | K32: 7 | L32: 7 | M32: 9 | N32: 9 | O32: 10 | P32: 11 | Q32: 11 | R32: 12 | S32: 11 | T32: 12 | U32: 55 | V32: 57 | W32: 38 | X32: 39 | Y32: 37 | Z32: 38 | AA32: 43 | AB32: 43 | AC32: 37 | AD32: 38 | AE32: 31 | AF32: 31 | AG32: 31 | AH32: 32 | AI32: 27 | AJ32: 27 | AK32: 30 | AL32: 30 | AM32: 29 | AN32: 29 | AO32: 19 | AP32: 19 | AQ32: 19 | AR32: 19 | AS32: 16 | AT32: 16 | AU32: 15 | AV32: 15 | AW32: 11 | AX32: 11 | AY32: 12 | AZ32: 12 | BA32: 15 | BB32: 2 | BC32: 235 | BD32: 44 | BE32: 35 | BF32: 199 | BG32: 21 | BI32: 14 | BJ32: 85 | BK32: 649 | BL32: 830 | BM32: 280 | BN32: 76 | BO32: =SUM(#REF!) ->  | BP32: =SUM(#REF!) ->  | BR32: 425 | BS32: 457 | BT32: 24
B33: 03 | C33: 26 | D33: 6725 | E33: P.S. SANTA CRUZ | F33: 442 | H33: 215 | I33: 227 | K33: 3 | L33: 4 | M33: 4 | N33: 4 | O33: 4 | P33: 5 | Q33: 5 | R33: 5 | S33: 5 | T33: 5 | U33: 24 | V33: 24 | W33: 17 | X33: 18 | Y33: 16 | Z33: 16 | AA33: 18 | AB33: 19 | AC33: 16 | AD33: 17 | AE33: 13 | AF33: 14 | AG33: 14 | AH33: 15 | AI33: 12 | AJ33: 12 | AK33: 13 | AL33: 13 | AM33: 13 | AN33: 13 | AO33: 8 | AP33: 9 | AQ33: 8 | AR33: 9 | AS33: 7 | AT33: 7 | AU33: 6 | AV33: 7 | AW33: 4 | AX33: 5 | AY33: 5 | AZ33: 6 | BA33: 7 | BB33: 0 | BC33: 103 | BD33: 20 | BE33: 15 | BF33: 88 | BG33: 9 | BI33: 7 | BJ33: 37 | BK33: 285 | BL33: 365 | BM33: 124 | BN33: 33 | BO33: =SUM(#REF!) ->  | BP33: =SUM(#REF!) ->  | BR33: 185 | BS33: 202 | BT33: 11
B34: 03 | C34: 27 | D34: 7757 | E34: P.S. HUANANGUI | F34: 462 | H34: 225 | I34: 237 | K34: 3 | L34: 4 | M34: 4 | N34: 5 | O34: 5 | P34: 5 | Q34: 5 | R34: 5 | S34: 5 | T34: 6 | U34: 25 | V34: 26 | W34: 19 | X34: 19 | Y34: 17 | Z34: 18 | AA34: 19 | AB34: 19 | AC34: 17 | AD34: 17 | AE34: 13 | AF34: 14 | AG34: 14 | AH34: 14 | AI34: 12 | AJ34: 13 | AK34: 13 | AL34: 14 | AM34: 13 | AN34: 14 | AO34: 8 | AP34: 9 | AQ34: 8 | AR34: 9 | AS34: 7 | AT34: 8 | AU34: 7 | AV34: 7 | AW34: 5 | AX34: 5 | AY34: 6 | AZ34: 6 | BA34: 7 | BB34: 0 | BC34: 108 | BD34: 21 | BE34: 16 | BF34: 92 | BG34: 10 | BI34: 7 | BJ34: 40 | BK34: 298 | BL34: 379 | BM34: 128 | BN34: 36 | BO34: =SUM(#REF!) ->  | BP34: =SUM(#REF!) ->  | BR34: 196 | BS34: 207 | BT34: 12
A35: 150808 | C35: 28 | D35: 150808 | E35: DISTRITO PACCHO | F35: 2223 | H35: 1099 | I35: 1124 | K35: 15 | L35: 15 | M35: 15 | N35: 15 | O35: 15 | P35: 16 | Q35: 16 | R35: 16 | S35: 16 | T35: 16 | U35: 90 | V35: 91 | W35: 92 | X35: 94 | Y35: 59 | Z35: 61 | AA35: 64 | AB35: 65 | AC35: 59 | AD35: 61 | AE35: 65 | AF35: 66 | AG35: 71 | AH35: 72 | AI35: 71 | AJ35: 73 | AK35: 61 | AL35: 63 | AM35: 61 | AN35: 62 | AO35: 60 | AP35: 61 | AQ35: 73 | AR35: 75 | AS35: 67 | AT35: 69 | AU35: 56 | AV35: 58 | AW35: 38 | AX35: 39 | AY35: 35 | AZ35: 36 | BA35: 31 | BB35: 2 | BC35: 432 | BD35: 100 | BE35: 46 | BF35: 386 | BG35: 42 | BI35: 30 | BJ35: 125 | BK35: 1165 | BL35: 1806 | BM35: 796 | BN35: 262 | BO35: =SUM(#REF!) ->  | BP35: =SUM(#REF!) ->  | BR35: 736 | BS35: 1261 | BT35: 71
B36: 05 | C36: 29 | D36: 5650 | E36: P.S. PACCHO | F36: 778 | H36: 384 | I36: 394 | K36: 5 | L36: 5 | M36: 5 | N36: 5 | O36: 5 | P36: 6 | Q36: 5 | R36: 6 | S36: 5 | T36: 6 | U36: 31 | V36: 32 | W36: 32 | X36: 32 | Y36: 21 | Z36: 21 | AA36: 23 | AB36: 23 | AC36: 21 | AD36: 22 | AE36: 23 | AF36: 23 | AG36: 25 | AH36: 25 | AI36: 25 | AJ36: 25 | AK36: 21 | AL36: 22 | AM36: 21 | AN36: 22 | AO36: 21 | AP36: 22 | AQ36: 26 | AR36: 26 | AS36: 24 | AT36: 24 | AU36: 20 | AV36: 20 | AW36: 13 | AX36: 14 | AY36: 12 | AZ36: 13 | BA36: 11 | BB36: 1 | BC36: 151 | BD36: 35 | BE36: 16 | BF36: 135 | BG36: 15 | BI36: 10 | BJ36: 43 | BK36: 407 | BL36: 633 | BM36: 279 | BN36: 92 | BO36: =SUM(#REF!) ->  | BP36: =SUM(#REF!) ->  | BR36: 258 | BS36: 442 | BT36: 25
B37: 05 | C37: 30 | D37: 5651 | E37: P.S. LACSANGA | F37: 667 | H37: 326 | I37: 341 | K37: 4 | L37: 5 | M37: 4 | N37: 5 | O37: 4 | P37: 5 | Q37: 5 | R37: 5 | S37: 5 | T37: 5 | U37: 27 | V37: 28 | W37: 28 | X37: 29 | Y37: 18 | Z37: 19 | AA37: 19 | AB37: 19 | AC37: 17 | AD37: 18 | AE37: 19 | AF37: 20 | AG37: 21 | AH37: 22 | AI37: 21 | AJ37: 22 | AK37: 18 | AL37: 19 | AM37: 18 | AN37: 19 | AO37: 18 | AP37: 18 | AQ37: 22 | AR37: 22 | AS37: 20 | AT37: 21 | AU37: 17 | AV37: 17 | AW37: 11 | AX37: 12 | AY37: 10 | AZ37: 11 | BA37: 9 | BB37: 1 | BC37: 130 | BD37: 30 | BE37: 14 | BF37: 116 | BG37: 13 | BI37: 9 | BJ37: 38 | BK37: 351 | BL37: 542 | BM37: 238 | BN37: 78 | BO37: =SUM(#REF!) ->  | BP37: =SUM(#REF!) ->  | BR37: 222 | BS37: 377 | BT37: 21
B38: 05 | C38: 31 | D38: 5653 | E38: P.S. AYARANGA | F38: 333 | H38: 161 | I38: 172 | K38: 2 | L38: 3 | M38: 2 | N38: 3 | O38: 2 | P38: 3 | Q38: 2 | R38: 3 | S38: 2 | T38: 3 | U38: 13 | V38: 14 | W38: 14 | X38: 14 | Y38: 8 | Z38: 9 | AA38: 9 | AB38: 9 | AC38: 9 | AD38: 9 | AE38: 10 | AF38: 10 | AG38: 10 | AH38: 11 | AI38: 11 | AJ38: 11 | AK38: 9 | AL38: 10 | AM38: 9 | AN38: 9 | AO38: 9 | AP38: 9 | AQ38: 11 | AR38: 11 | AS38: 10 | AT38: 10 | AU38: 8 | AV38: 9 | AW38: 6 | AX38: 6 | AY38: 5 | AZ38: 6 | BA38: 5 | BB38: 0 | BC38: 65 | BD38: 15 | BE38: 7 | BF38: 58 | BG38: 6 | BI38: 5 | BJ38: 20 | BK38: 174 | BL38: 268 | BM38: 119 | BN38: 40 | BO38: =SUM(#REF!) ->  | BP38: =SUM(#REF!) ->  | BR38: 108 | BS38: 189 | BT38: 11
B39: 05 | C39: 32 | D39: 5652 | E39: P.S. MUZGA | F39: 445 | H39: 218 | I39: 227 | K39: 3 | L39: 3 | M39: 3 | N39: 3 | O39: 3 | P39: 3 | Q39: 3 | R39: 3 | S39: 3 | T39: 3 | U39: 18 | V39: 18 | W39: 18 | X39: 19 | Y39: 12 | Z39: 12 | AA39: 13 | AB39: 14 | AC39: 12 | AD39: 12 | AE39: 13 | AF39: 13 | AG39: 14 | AH39: 15 | AI39: 14 | AJ39: 15 | AK39: 12 | AL39: 13 | AM39: 12 | AN39: 13 | AO39: 12 | AP39: 12 | AQ39: 15 | AR39: 15 | AS39: 13 | AT39: 14 | AU39: 11 | AV39: 12 | AW39: 7 | AX39: 8 | AY39: 7 | AZ39: 7 | BA39: 6 | BB39: 0 | BC39: 86 | BD39: 20 | BE39: 9 | BF39: 77 | BG39: 8 | BI39: 6 | BJ39: 24 | BK39: 233 | BL39: 363 | BM39: 160 | BN39: 52 | BO39: =SUM(#REF!) ->  | BP39: =SUM(#REF!) ->  | BR39: 148 | BS39: 253 | BT39: 14
A40: 150809 | C40: 33 | D40: 150809 | E40: DISTRITO SANTA LEONOR | F40: 1477 | H40: 732 | I40: 745 | K40: 11 | L40: 11 | M40: 10 | N40: 11 | O40: 10 | P40: 10 | Q40: 10 | R40: 10 | S40: 11 | T40: 11 | U40: 67 | V40: 68 | W40: 84 | X40: 86 | Y40: 52 | Z40: 54 | AA40: 46 | AB40: 46 | AC40: 34 | AD40: 34 | AE40: 35 | AF40: 36 | AG40: 45 | AH40: 46 | AI40: 44 | AJ40: 45 | AK40: 45 | AL40: 46 | AM40: 51 | AN40: 52 | AO40: 36 | AP40: 37 | AQ40: 41 | AR40: 41 | AS40: 29 | AT40: 30 | AU40: 29 | AV40: 29 | AW40: 23 | AX40: 23 | AY40: 19 | AZ40: 19 | BA40: 23 | BB40: 2 | BC40: 323 | BD40: 78 | BE40: 59 | BF40: 264 | BG40: 32 | BI40: =SUM(K40:L40) -> 22 | BJ40: =SUM(M40:T40) -> 83 | BK40: =SUM(K40:AH40) -> 838 | BL40: =SUM(U40:AT40) -> 1230 | BM40: =SUM(AI40:AT40) -> 497 | BN40: =SUM(AU40:AZ40) -> 142 | BO40: =SUM(#REF!) ->  | BP40: =SUM(#REF!) ->  | BR40: =SUM(U40:AD40) -> 571 | BS40: =SUM(AE40:AX40) -> 763 | BT40: =SUM(AY40:AZ40) -> 38
B41: 05 | C41: 34 | D41: 5645 | E41: P.S. CHIUCHIN | F41: 886 | H41: 437 | I41: 449 | K41: 6 | L41: 7 | M41: 6 | N41: 7 | O41: 6 | P41: 6 | Q41: 6 | R41: 6 | S41: 6 | T41: 7 | U41: 40 | V41: 40 | W41: 51 | X41: 51 | Y41: 31 | Z41: 31 | AA41: 28 | AB41: 28 | AC41: 21 | AD41: 21 | AE41: 21 | AF41: 22 | AG41: 27 | AH41: 28 | AI41: 26 | AJ41: 27 | AK41: 27 | AL41: 28 | AM41: 31 | AN41: 31 | AO41: 22 | AP41: 22 | AQ41: 24 | AR41: 25 | AS41: 17 | AT41: 18 | AU41: 17 | AV41: 18 | AW41: 13 | AX41: 14 | AY41: 11 | AZ41: 12 | BA41: 14 | BB41: 1 | BC41: 194 | BD41: 47 | BE41: 35 | BF41: 159 | BG41: 19 | BI41: 13 | BJ41: 50 | BK41: 503 | BL41: 738 | BM41: 298 | BN41: 85 | BO41: =SUM(#REF!) ->  | BP41: =SUM(#REF!) ->  | BR41: 342 | BS41: 458 | BT41: 23
B42: 05 | C42: 35 | D42: 5646 | E42: P.S. PARQUIN | F42: 443 | H42: 214 | I42: 229 | K42: 3 | L42: 4 | M42: 3 | N42: 3 | O42: 3 | P42: 3 | Q42: 3 | R42: 3 | S42: 3 | T42: 4 | U42: 20 | V42: 21 | W42: 25 | X42: 26 | Y42: 16 | Z42: 17 | AA42: 13 | AB42: 14 | AC42: 9 | AD42: 10 | AE42: 10 | AF42: 11 | AG42: 13 | AH42: 14 | AI42: 13 | AJ42: 14 | AK42: 13 | AL42: 14 | AM42: 15 | AN42: 16 | AO42: 11 | AP42: 11 | AQ42: 12 | AR42: 13 | AS42: 9 | AT42: 9 | AU42: 8 | AV42: 9 | AW42: 7 | AX42: 7 | AY42: 5 | AZ42: 6 | BA42: 7 | BB42: 1 | BC42: 97 | BD42: 23 | BE42: 18 | BF42: 79 | BG42: 10 | BI42: 7 | BJ42: 25 | BK42: 251 | BL42: 369 | BM42: 150 | BN42: 42 | BO42: =SUM(#REF!) ->  | BP42: =SUM(#REF!) ->  | BR42: 171 | BS42: 229 | BT42: 11
B43: 05 | C43: 36 | D43: 5647 | E43: P.S. JUCUL | F43: 148 | H43: 69 | I43: 79 | K43: 1 | L43: 1 | M43: 1 | N43: 1 | O43: 1 | P43: 1 | Q43: 1 | R43: 1 | S43: 1 | T43: 1 | U43: 7 | V43: 7 | W43: 8 | X43: 9 | Y43: 5 | Z43: 6 | AA43: 4 | AB43: 5 | AC43: 3 | AD43: 4 | AE43: 3 | AF43: 4 | AG43: 4 | AH43: 5 | AI43: 4 | AJ43: 5 | AK43: 4 | AL43: 5 | AM43: 5 | AN43: 5 | AO43: 3 | AP43: 4 | AQ43: 4 | AR43: 4 | AS43: 3 | AT43: 3 | AU43: 3 | AV43: 3 | AW43: 2 | AX43: 3 | AY43: 2 | AZ43: 2 | BA43: 2 | BB43: 0 | BC43: 32 | BD43: 8 | BE43: 6 | BF43: 26 | BG43: 3 | BI43: 2 | BJ43: 8 | BK43: 84 | BL43: 123 | BM43: 49 | BN43: 15 | BO43: =SUM(#REF!) ->  | BP43: =SUM(#REF!) ->  | BR43: 58 | BS43: 76 | BT43: 4
A44: 150810 | C44: 37 | D44: 150810 | E44: DISTRITO SANTA MARIA | F44: 34011 | H44: 16840 | I44: 17171 | K44: 289 | L44: 294 | M44: 277 | N44: 283 | O44: 270 | P44: 275 | Q44: 267 | R44: 272 | S44: 268 | T44: 273 | U44: 1426 | V44: 1454 | W44: 1606 | X44: 1638 | Y44: 1518 | Z44: 1547 | AA44: 1440 | AB44: 1469 | AC44: 1245 | AD44: 1270 | AE44: 1205 | AF44: 1229 | AG44: 1247 | AH44: 1271 | AI44: 1025 | AJ44: 1046 | AK44: 902 | AL44: 920 | AM44: 796 | AN44: 811 | AO44: 766 | AP44: 781 | AQ44: 661 | AR44: 673 | AS44: 499 | AT44: 508 | AU44: 436 | AV44: 445 | AW44: 311 | AX44: 318 | AY44: 386 | AZ44: 394 | BA44: 598 | BB44: 45 | BC44: 8967 | BD44: 1609 | BE44: 1501 | BF44: 7466 | BG44: 750 | BI44: 583 | BJ44: 2185 | BK44: 22333 | BL44: 28953 | BM44: 9388 | BN44: 2290 | BO44: =SUM(#REF!) ->  | BP44: =SUM(#REF!) ->  | BR44: 14613 | BS44: 15850 | BT44: 780
B45: 02 | C45: 38 | D45: 5668 | E45: C.S. SANTA MARIA | F45: 9523 | H45: 4716 | I45: 4807 | K45: 81 | L45: 83 | M45: 78 | N45: 79 | O45: 75 | P45: 77 | Q45: 74 | R45: 76 | S45: 75 | T45: 77 | U45: 399 | V45: 406 | W45: 449 | X45: 457 | Y45: 425 | Z45: 433 | AA45: 404 | AB45: 412 | AC45: 350 | AD45: 356 | AE45: 338 | AF45: 344 | AG45: 350 | AH45: 356 | AI45: 287 | AJ45: 293 | AK45: 253 | AL45: 257 | AM45: 222 | AN45: 227 | AO45: 214 | AP45: 219 | AQ45: 185 | AR45: 189 | AS45: 139 | AT45: 142 | AU45: 122 | AV45: 125 | AW45: 88 | AX45: 89 | AY45: 108 | AZ45: 110 | BA45: 167 | BB45: 12 | BC45: 2511 | BD45: 451 | BE45: 421 | BF45: 2090 | BG45: 209 | BI45: 164 | BJ45: 611 | BK45: 6254 | BL45: 8106 | BM45: 2627 | BN45: 642 | BO45: =SUM(#REF!) ->  | BP45: =SUM(#REF!) ->  | BR45: 4091 | BS45: 4439 | BT45: 218
B46: 02 | C46: 39 | D46: 5669 | E46: P.S. CHONTA | F46: 5102 | H46: 2527 | I46: 2575 | K46: 43 | L46: 44 | M46: 42 | N46: 42 | O46: 41 | P46: 41 | Q46: 40 | R46: 41 | S46: 40 | T46: 41 | U46: 214 | V46: 218 | W46: 241 | X46: 246 | Y46: 227 | Z46: 232 | AA46: 216 | AB46: 220 | AC46: 187 | AD46: 190 | AE46: 181 | AF46: 185 | AG46: 187 | AH46: 191 | AI46: 154 | AJ46: 157 | AK46: 136 | AL46: 138 | AM46: 119 | AN46: 122 | AO46: 115 | AP46: 117 | AQ46: 99 | AR46: 101 | AS46: 75 | AT46: 76 | AU46: 65 | AV46: 67 | AW46: 47 | AX46: 47 | AY46: 58 | AZ46: 59 | BA46: 90 | BB46: 7 | BC46: 1345 | BD46: 241 | BE46: 225 | BF46: 1120 | BG46: 113 | BI46: 87 | BJ46: 328 | BK46: 3350 | BL46: 4344 | BM46: 1409 | BN46: 343 | BO46: =SUM(#REF!) ->  | BP46: =SUM(#REF!) ->  | BR46: 2191 | BS46: 2379 | BT46: 117
B47: 02 | C47: 40 | D47: 5671 | E47: P.S. ZAPATA | F47: 2721 | H47: 1346 | I47: 1375 | K47: 23 | L47: 24 | M47: 22 | N47: 23 | O47: 22 | P47: 22 | Q47: 21 | R47: 22 | S47: 21 | T47: 22 | U47: 114 | V47: 117 | W47: 129 | X47: 131 | Y47: 122 | Z47: 124 | AA47: 115 | AB47: 118 | AC47: 99 | AD47: 101 | AE47: 96 | AF47: 98 | AG47: 99 | AH47: 101 | AI47: 82 | AJ47: 84 | AK47: 72 | AL47: 74 | AM47: 64 | AN47: 65 | AO47: 61 | AP47: 63 | AQ47: 53 | AR47: 54 | AS47: 40 | AT47: 41 | AU47: 35 | AV47: 35 | AW47: 25 | AX47: 25 | AY47: 31 | AZ47: 31 | BA47: 48 | BB47: 4 | BC47: 717 | BD47: 129 | BE47: 120 | BF47: 597 | BG47: 60 | BI47: 47 | BJ47: 175 | BK47: 1786 | BL47: 2317 | BM47: 753 | BN47: 182 | BO47: =SUM(#REF!) ->  | BP47: =SUM(#REF!) ->  | BR47: 1170 | BS47: 1267 | BT47: 62
B48: 02 | C48: 41 | D48: 5670 | E48: P.S. AMADO VELASQUEZ | F48: 9183 | H48: 4546 | I48: 4637 | K48: 78 | L48: 79 | M48: 75 | N48: 76 | O48: 73 | P48: 74 | Q48: 72 | R48: 74 | S48: 72 | T48: 74 | U48: 385 | V48: 393 | W48: 434 | X48: 443 | Y48: 410 | Z48: 418 | AA48: 389 | AB48: 396 | AC48: 336 | AD48: 343 | AE48: 325 | AF48: 332 | AG48: 337 | AH48: 343 | AI48: 276 | AJ48: 282 | AK48: 243 | AL48: 248 | AM48: 215 | AN48: 219 | AO48: 207 | AP48: 211 | AQ48: 178 | AR48: 182 | AS48: 135 | AT48: 137 | AU48: 118 | AV48: 120 | AW48: 84 | AX48: 86 | AY48: 104 | AZ48: 107 | BA48: 161 | BB48: 12 | BC48: 2421 | BD48: 434 | BE48: 405 | BF48: 2016 | BG48: 203 | BI48: 157 | BJ48: 590 | BK48: 6031 | BL48: 7817 | BM48: 2533 | BN48: 619 | BO48: =SUM(#REF!) ->  | BP48: =SUM(#REF!) ->  | BR48: 3947 | BS48: 4278 | BT48: 211
B49: 02 | C49: 42 | D49: 5672 | E49: P.S. SAN BARTOLOME | F49: 7482 | H49: 3704 | I49: 3778 | K49: 63 | L49: 65 | M49: 61 | N49: 62 | O49: 59 | P49: 61 | Q49: 59 | R49: 60 | S49: 59 | T49: 60 | U49: 314 | V49: 320 | W49: 354 | X49: 360 | Y49: 334 | Z49: 340 | AA49: 316 | AB49: 323 | AC49: 274 | AD49: 279 | AE49: 265 | AF49: 270 | AG49: 274 | AH49: 280 | AI49: 226 | AJ49: 230 | AK49: 199 | AL49: 202 | AM49: 175 | AN49: 179 | AO49: 168 | AP49: 172 | AQ49: 145 | AR49: 148 | AS49: 110 | AT49: 112 | AU49: 96 | AV49: 98 | AW49: 68 | AX49: 70 | AY49: 85 | AZ49: 87 | BA49: 132 | BB49: 10 | BC49: 1973 | BD49: 354 | BE49: 330 | BF49: 1643 | BG49: 165 | BI49: 128 | BJ49: 481 | BK49: 4912 | BL49: 6369 | BM49: 2066 | BN49: 504 | BO49: =SUM(#REF!) ->  | BP49: =SUM(#REF!) ->  | BR49: 3214 | BS49: 3487 | BT49: 172
A50: 150811 | C50: 43 | D50: 150811 | E50: DISTRITO SAYAN | F50: 24465 | H50: 12112 | I50: 12353 | K50: 221 | L50: 225 | M50: 218 | N50: 222 | O50: 216 | P50: 220 | Q50: 216 | R50: 220 | S50: 216 | T50: 221 | U50: 1118 | V50: 1140 | W50: 1182 | X50: 1206 | Y50: 1151 | Z50: 1173 | AA50: 1154 | AB50: 1176 | AC50: 1007 | AD50: 1027 | AE50: 913 | AF50: 931 | AG50: 874 | AH50: 891 | AI50: 705 | AJ50: 719 | AK50: 674 | AL50: 688 | AM50: 535 | AN50: 546 | AO50: 463 | AP50: 473 | AQ50: 390 | AR50: 398 | AS50: 299 | AT50: 305 | AU50: 250 | AV50: 255 | AW50: 163 | AX50: 167 | AY50: 147 | AZ50: 150 | BA50: 458 | BB50: 34 | BC50: 6654 | BD50: 1239 | BE50: 1243 | BF50: 5411 | BG50: 576 | BI50: 446 | BJ50: 1749 | BK50: 17138 | BL50: 21138 | BM50: 6195 | BN50: 1132 | BO50: =SUM(#REF!) ->  | BP50: =SUM(#REF!) ->  | BR50: 11334 | BS50: 10639 | BT50: 297
B51: 03 | C51: 44 | D51: 5780 | E51: C.S. SAYAN | F51: 10031 | H51: 4967 | I51: 5064 | K51: 91 | L51: 92 | M51: 90 | N51: 91 | O51: 88 | P51: 90 | Q51: 88 | R51: 90 | S51: 88 | T51: 90 | U51: 458 | V51: 467 | W51: 484 | X51: 494 | Y51: 473 | Z51: 482 | AA51: 473 | AB51: 482 | AC51: 413 | AD51: 421 | AE51: 375 | AF51: 382 | AG51: 358 | AH51: 366 | AI51: 290 | AJ51: 295 | AK51: 277 | AL51: 282 | AM51: 219 | AN51: 224 | AO51: 190 | AP51: 193 | AQ51: 160 | AR51: 163 | AS51: 123 | AT51: 125 | AU51: 103 | AV51: 105 | AW51: 66 | AX51: 68 | AY51: 60 | AZ51: 62 | BA51: 188 | BB51: 13 | BC51: 2728 | BD51: 508 | BE51: 510 | BF51: 2219 | BG51: 235 | BI51: 183 | BJ51: 715 | BK51: 7026 | BL51: 8669 | BM51: 2541 | BN51: 464 | BO51: =SUM(#REF!) ->  | BP51: =SUM(#REF!) ->  | BR51: 4647 | BS51: 4364 | BT51: 122
B52: 03 | C52: 45 | D52: 5774 | E52: C.S. 9 DE OCTUBRE | F52: 5138 | H52: 2548 | I52: 2590 | K52: 47 | L52: 47 | M52: 46 | N52: 46 | O52: 46 | P52: 46 | Q52: 46 | R52: 46 | S52: 46 | T52: 46 | U52: 235 | V52: 239 | W52: 248 | X52: 253 | Y52: 242 | Z52: 246 | AA52: 242 | AB52: 247 | AC52: 212 | AD52: 216 | AE52: 192 | AF52: 195 | AG52: 184 | AH52: 187 | AI52: 148 | AJ52: 151 | AK52: 142 | AL52: 144 | AM52: 112 | AN52: 115 | AO52: 98 | AP52: 99 | AQ52: 82 | AR52: 83 | AS52: 63 | AT52: 64 | AU52: 52 | AV52: 54 | AW52: 34 | AX52: 35 | AY52: 31 | AZ52: 31 | BA52: 96 | BB52: 7 | BC52: 1397 | BD52: 260 | BE52: 261 | BF52: 1136 | BG52: 121 | BI52: 94 | BJ52: 368 | BK52: 3600 | BL52: 4439 | BM52: 1301 | BN52: 237 | BO52: =SUM(#REF!) ->  | BP52: =SUM(#REF!) ->  | BR52: 2380 | BS52: 2234 | BT52: 62
B53: 03 | C53: 46 | D53: 5781 | E53: P.S. CHAMBARA | F53: 734 | H53: 361 | I53: 373 | K53: 6 | L53: 7 | M53: 6 | N53: 7 | O53: 6 | P53: 7 | Q53: 6 | R53: 7 | S53: 6 | T53: 7 | U53: 34 | V53: 34 | W53: 35 | X53: 35 | Y53: 35 | Z53: 35 | AA53: 35 | AB53: 35 | AC53: 30 | AD53: 31 | AE53: 28 | AF53: 29 | AG53: 26 | AH53: 27 | AI53: 21 | AJ53: 22 | AK53: 20 | AL53: 21 | AM53: 16 | AN53: 16 | AO53: 14 | AP53: 14 | AQ53: 12 | AR53: 12 | AS53: 9 | AT53: 9 | AU53: 7 | AV53: 8 | AW53: 5 | AX53: 5 | AY53: 4 | AZ53: 5 | BA53: 14 | BB53: 1 | BC53: 200 | BD53: 37 | BE53: 37 | BF53: 162 | BG53: 17 | BI53: 13 | BJ53: 52 | BK53: 514 | BL53: 635 | BM53: 186 | BN53: 34 | BO53: =SUM(#REF!) ->  | BP53: =SUM(#REF!) ->  | BR53: 339 | BS53: 321 | BT53: 9
B54: 03 | C54: 47 | D54: 5775 | E54: P.S. LA MERCED | F54: 1223 | H54: 605 | I54: 618 | K54: 11 | L54: 11 | M54: 11 | N54: 11 | O54: 11 | P54: 11 | Q54: 11 | R54: 11 | S54: 11 | T54: 11 | U54: 56 | V54: 57 | W54: 59 | X54: 61 | Y54: 57 | Z54: 59 | AA54: 57 | AB54: 59 | AC54: 51 | AD54: 51 | AE54: 46 | AF54: 46 | AG54: 44 | AH54: 44 | AI54: 35 | AJ54: 36 | AK54: 34 | AL54: 34 | AM54: 27 | AN54: 27 | AO54: 23 | AP54: 24 | AQ54: 19 | AR54: 20 | AS54: 15 | AT54: 15 | AU54: 12 | AV54: 13 | AW54: 8 | AX54: 9 | AY54: 7 | AZ54: 8 | BA54: 23 | BB54: 2 | BC54: 333 | BD54: 62 | BE54: 62 | BF54: 271 | BG54: 29 | BI54: 22 | BJ54: 88 | BK54: 857 | BL54: 1056 | BM54: 309 | BN54: 57 | BO54: =SUM(#REF!) ->  | BP54: =SUM(#REF!) ->  | BR54: 567 | BS54: 531 | BT54: 15
B55: 03 | C55: 48 | D55: 5776 | E55: P.S. LA VILLA | F55: 6361 | H55: 3148 | I55: 3213 | K55: 57 | L55: 59 | M55: 56 | N55: 58 | O55: 56 | P55: 57 | Q55: 56 | R55: 57 | S55: 56 | T55: 58 | U55: 291 | V55: 297 | W55: 307 | X55: 314 | Y55: 300 | Z55: 305 | AA55: 300 | AB55: 306 | AC55: 262 | AD55: 267 | AE55: 237 | AF55: 242 | AG55: 227 | AH55: 232 | AI55: 183 | AJ55: 187 | AK55: 175 | AL55: 179 | AM55: 139 | AN55: 142 | AO55: 120 | AP55: 123 | AQ55: 102 | AR55: 103 | AS55: 78 | AT55: 79 | AU55: 65 | AV55: 66 | AW55: 43 | AX55: 43 | AY55: 38 | AZ55: 39 | BA55: 119 | BB55: 9 | BC55: 1730 | BD55: 322 | BE55: 323 | BF55: 1407 | BG55: 150 | BI55: 116 | BJ55: 454 | BK55: 4457 | BL55: 5497 | BM55: 1610 | BN55: 294 | BO55: =SUM(#REF!) ->  | BP55: =SUM(#REF!) ->  | BR55: 2949 | BS55: 2765 | BT55: 77
B56: 03 | C56: 49 | D56: 5777 | E56: P.S. EL AHORCADO | F56: 489 | H56: 238 | I56: 251 | K56: 4 | L56: 5 | M56: 4 | N56: 5 | O56: 4 | P56: 5 | Q56: 4 | R56: 5 | S56: 4 | T56: 5 | U56: 22 | V56: 23 | W56: 24 | X56: 25 | Y56: 22 | Z56: 23 | AA56: 23 | AB56: 24 | AC56: 20 | AD56: 20 | AE56: 18 | AF56: 18 | AG56: 17 | AH56: 18 | AI56: 14 | AJ56: 14 | AK56: 13 | AL56: 14 | AM56: 11 | AN56: 11 | AO56: 9 | AP56: 10 | AQ56: 8 | AR56: 8 | AS56: 6 | AT56: 6 | AU56: 5 | AV56: 5 | AW56: 3 | AX56: 4 | AY56: 3 | AZ56: 3 | BA56: 9 | BB56: 1 | BC56: 133 | BD56: 25 | BE56: 25 | BF56: 108 | BG56: 12 | BI56: 9 | BJ56: 36 | BK56: 342 | BL56: 421 | BM56: 124 | BN56: 23 | BO56: =SUM(#REF!) ->  | BP56: =SUM(#REF!) ->  | BR56: 226 | BS56: 212 | BT56: 6
B57: 03 | C57: 50 | D57: 6726 | E57: P.S. LA UNION | F57: 489 | H57: 238 | I57: 251 | K57: 4 | L57: 5 | M57: 4 | N57: 5 | O57: 4 | P57: 5 | Q57: 4 | R57: 5 | S57: 4 | T57: 5 | U57: 22 | V57: 23 | W57: 24 | X57: 25 | Y57: 22 | Z57: 23 | AA57: 23 | AB57: 24 | AC57: 20 | AD57: 20 | AE57: 18 | AF57: 18 | AG57: 17 | AH57: 18 | AI57: 14 | AJ57: 14 | AK57: 13 | AL57: 14 | AM57: 11 | AN57: 11 | AO57: 9 | AP57: 10 | AQ57: 8 | AR57: 8 | AS57: 6 | AT57: 6 | AU57: 5 | AV57: 5 | AW57: 3 | AX57: 4 | AY57: 3 | AZ57: 3 | BA57: 9 | BB57: 1 | BC57: 133 | BD57: 25 | BE57: 25 | BF57: 108 | BG57: 12 | BI57: 9 | BJ57: 36 | BK57: 342 | BL57: 421 | BM57: 124 | BN57: 23 | BO57: =SUM(#REF!) ->  | BP57: =SUM(#REF!) ->  | BR57: 226 | BS57: 212 | BT57: 6
A58: 150812 | C58: 51 | D58: 150812 | E58: DISTRITO VEGUETA | F58: 22369 | H58: 11075 | I58: 11294 | K58: 231 | L58: 236 | M58: 211 | N58: 216 | O58: 197 | P58: 201 | Q58: 187 | R58: 191 | S58: 182 | T58: 185 | U58: 924 | V58: 942 | W58: 1066 | X58: 1087 | Y58: 1076 | Z58: 1098 | AA58: 1045 | AB58: 1066 | AC58: 848 | AD58: 864 | AE58: 753 | AF58: 767 | AG58: 731 | AH58: 746 | AI58: 656 | AJ58: 668 | AK58: 616 | AL58: 628 | AM58: 524 | AN58: 534 | AO58: 459 | AP58: 469 | AQ58: 387 | AR58: 394 | AS58: 311 | AT58: 317 | AU58: 265 | AV58: 270 | AW58: 196 | AX58: 200 | AY58: 210 | AZ58: 215 | BA58: 479 | BB58: 36 | BC58: 6007 | BD58: 1068 | BE58: 1124 | BF58: 4883 | BG58: 603 | BI58: 467 | BJ58: 1570 | BK58: 15050 | BL58: 18976 | BM58: 5963 | BN58: 1356 | BO58: =SUM(#REF!) ->  | BP58: =SUM(#REF!) ->  | BR58: 10016 | BS58: 9891 | BT58: 425
B59: 04 | C59: 52 | D59: 5673 | E59: C.S. VEGUETA | F59: 6710 | H59: 3321 | I59: 3389 | K59: 69 | L59: 71 | M59: 63 | N59: 65 | O59: 58 | P59: 60 | Q59: 56 | R59: 57 | S59: 54 | T59: 56 | U59: 277 | V59: 282 | W59: 319 | X59: 326 | Y59: 324 | Z59: 330 | AA59: 314 | AB59: 320 | AC59: 255 | AD59: 259 | AE59: 225 | AF59: 230 | AG59: 219 | AH59: 224 | AI59: 197 | AJ59: 201 | AK59: 185 | AL59: 188 | AM59: 157 | AN59: 161 | AO59: 138 | AP59: 140 | AQ59: 116 | AR59: 119 | AS59: 93 | AT59: 95 | AU59: 80 | AV59: 81 | AW59: 59 | AX59: 60 | AY59: 63 | AZ59: 64 | BA59: 144 | BB59: 11 | BC59: 1802 | BD59: 320 | BE59: 338 | BF59: 1465 | BG59: 181 | BI59: 140 | BJ59: 469 | BK59: 4513 | BL59: 5694 | BM59: 1790 | BN59: 407 | BO59: =SUM(#REF!) ->  | BP59: =SUM(#REF!) ->  | BR59: 3006 | BS59: 2968 | BT59: 127
B60: 04 | C60: 53 | D60: 5674 | E60: P.S. MAZO | F60: 2237 | H60: 1105 | I60: 1132 | K60: 23 | L60: 24 | M60: 21 | N60: 22 | O60: 20 | P60: 20 | Q60: 19 | R60: 19 | S60: 18 | T60: 19 | U60: 92 | V60: 94 | W60: 107 | X60: 109 | Y60: 107 | Z60: 110 | AA60: 104 | AB60: 106 | AC60: 84 | AD60: 86 | AE60: 75 | AF60: 77 | AG60: 73 | AH60: 75 | AI60: 65 | AJ60: 67 | AK60: 61 | AL60: 63 | AM60: 52 | AN60: 54 | AO60: 46 | AP60: 47 | AQ60: 39 | AR60: 39 | AS60: 31 | AT60: 32 | AU60: 27 | AV60: 27 | AW60: 20 | AX60: 20 | AY60: 21 | AZ60: 22 | BA60: 48 | BB60: 4 | BC60: 601 | BD60: 107 | BE60: 112 | BF60: 488 | BG60: 60 | BI60: 47 | BJ60: 158 | BK60: 1504 | BL60: 1895 | BM60: 596 | BN60: 137 | BO60: =SUM(#REF!) ->  | BP60: =SUM(#REF!) ->  | BR60: 999 | BS60: 990 | BT60: 43
B61: 04 | C61: 54 | D61: 5675 | E61: P.S. PRIMAVERA | F61: 3132 | H61: 1550 | I61: 1582 | K61: 32 | L61: 33 | M61: 30 | N61: 30 | O61: 28 | P61: 28 | Q61: 26 | R61: 27 | S61: 25 | T61: 26 | U61: 130 | V61: 132 | W61: 149 | X61: 152 | Y61: 151 | Z61: 154 | AA61: 146 | AB61: 149 | AC61: 119 | AD61: 121 | AE61: 105 | AF61: 108 | AG61: 102 | AH61: 105 | AI61: 92 | AJ61: 93 | AK61: 86 | AL61: 88 | AM61: 73 | AN61: 75 | AO61: 64 | AP61: 66 | AQ61: 54 | AR61: 55 | AS61: 44 | AT61: 44 | AU61: 37 | AV61: 38 | AW61: 27 | AX61: 28 | AY61: 30 | AZ61: 30 | BA61: 67 | BB61: 5 | BC61: 841 | BD61: 150 | BE61: 157 | BF61: 684 | BG61: 84 | BI61: 65 | BJ61: 220 | BK61: 2108 | BL61: 2657 | BM61: 834 | BN61: 190 | BO61: =SUM(#REF!) ->  | BP61: =SUM(#REF!) ->  | BR61: 1403 | BS61: 1384 | BT61: 60
B62: 04 | C62: 55 | D62: 5676 | E62: P.S. MARIATEGUI | F62: 5369 | H62: 2659 | I62: 2710 | K62: 55 | L62: 57 | M62: 51 | N62: 51 | O62: 48 | P62: 48 | Q62: 45 | R62: 46 | S62: 44 | T62: 44 | U62: 222 | V62: 226 | W62: 255 | X62: 261 | Y62: 258 | Z62: 263 | AA62: 252 | AB62: 256 | AC62: 204 | AD62: 208 | AE62: 181 | AF62: 184 | AG62: 175 | AH62: 179 | AI62: 157 | AJ62: 161 | AK62: 148 | AL62: 151 | AM62: 126 | AN62: 128 | AO62: 110 | AP62: 113 | AQ62: 93 | AR62: 94 | AS62: 75 | AT62: 76 | AU62: 63 | AV62: 65 | AW62: 47 | AX62: 48 | AY62: 50 | AZ62: 51 | BA62: 115 | BB62: 9 | BC62: 1442 | BD62: 256 | BE62: 270 | BF62: 1172 | BG62: 145 | BI62: 112 | BJ62: 377 | BK62: 3613 | BL62: 4556 | BM62: 1432 | BN62: 324 | BO62: =SUM(#REF!) ->  | BP62: =SUM(#REF!) ->  | BR62: 2405 | BS62: 2374 | BT62: 101
B63: 04 | C63: 56 | D63: 5677 | E63: P.S. MEDIO MUNDO | F63: 4026 | H63: 1996 | I63: 2030 | K63: 42 | L63: 42 | M63: 38 | N63: 39 | O63: 36 | P63: 36 | Q63: 34 | R63: 34 | S63: 33 | T63: 33 | U63: 166 | V63: 170 | W63: 192 | X63: 196 | Y63: 194 | Z63: 197 | AA63: 188 | AB63: 192 | AC63: 153 | AD63: 155 | AE63: 135 | AF63: 138 | AG63: 132 | AH63: 134 | AI63: 118 | AJ63: 120 | AK63: 111 | AL63: 113 | AM63: 94 | AN63: 96 | AO63: 83 | AP63: 84 | AQ63: 70 | AR63: 71 | AS63: 56 | AT63: 57 | AU63: 48 | AV63: 48 | AW63: 35 | AX63: 36 | AY63: 38 | AZ63: 39 | BA63: 86 | BB63: 6 | BC63: 1081 | BD63: 192 | BE63: 202 | BF63: 879 | BG63: 109 | BI63: 84 | BJ63: 283 | BK63: 2709 | BL63: 3415 | BM63: 1073 | BN63: 244 | BO63: =SUM(#REF!) ->  | BP63: =SUM(#REF!) ->  | BR63: 1803 | BS63: 1779 | BT63: 77
B64: 04 | C64: 57 | D64: 5678 | E64: P.S. TIROLER | F64: 895 | H64: 441 | I64: 454 | K64: 9 | L64: 10 | M64: 8 | N64: 9 | O64: 8 | P64: 8 | Q64: 7 | R64: 8 | S64: 7 | T64: 8 | U64: 37 | V64: 38 | W64: 43 | X64: 44 | Y64: 43 | Z64: 43 | AA64: 42 | AB64: 42 | AC64: 34 | AD64: 34 | AE64: 31 | AF64: 31 | AG64: 29 | AH64: 30 | AI64: 26 | AJ64: 27 | AK64: 25 | AL64: 25 | AM64: 21 | AN64: 21 | AO64: 18 | AP64: 19 | AQ64: 15 | AR64: 16 | AS64: 12 | AT64: 13 | AU64: 10 | AV64: 11 | AW64: 8 | AX64: 8 | AY64: 8 | AZ64: 9 | BA64: 19 | BB64: 1 | BC64: 240 | BD64: 43 | BE64: 45 | BF64: 195 | BG64: 24 | BI64: 19 | BJ64: 63 | BK64: 603 | BL64: 759 | BM64: 238 | BN64: 54 | BO64: =SUM(#REF!) ->  | BP64: =SUM(#REF!) ->  | BR64: 400 | BS64: 396 | BT64: 17
A65: 150900 | C65: 58 | D65: 150900 | E65: PROVINCIA OYON | F65: 23132 | H65: 11455 | I65: 11677 | K65: 248 | L65: 252 | M65: 236 | N65: 241 | O65: 229 | P65: 233 | Q65: 225 | R65: 230 | S65: 224 | T65: 229 | U65: 1159 | V65: 1181 | W65: 1202 | X65: 1226 | Y65: 915 | Z65: 932 | AA65: 871 | AB65: 889 | AC65: 880 | AD65: 897 | AE65: 832 | AF65: 848 | AG65: 900 | AH65: 918 | AI65: 660 | AJ65: 672 | AK65: 612 | AL65: 624 | AM65: 499 | AN65: 508 | AO65: 424 | AP65: 432 | AQ65: 337 | AR65: 344 | AS65: 333 | AT65: 340 | AU65: 273 | AV65: 278 | AW65: 219 | AX65: 223 | AY65: 177 | AZ65: 180 | BA65: 513 | BB65: 38 | BC65: 5574 | BD65: 1271 | BE65: 982 | BF65: 4592 | BG65: 661 | BI65: 500 | BJ65: 1847 | BK65: 15997 | BL65: 19435 | BM65: 5785 | BN65: 1350 | BO65: =SUM(#REF!) ->  | BP65: =SUM(#REF!) ->  | BR65: 10152 | BS65: 10276 | BT65: 357
A66: 150901 | C66: 59 | D66: 150901 | E66: DISTRITO OYON | F66: 14701 | H66: 7280 | I66: 7421 | K66: 168 | L66: 171 | M66: 160 | N66: 164 | O66: 156 | P66: 159 | Q66: 153 | R66: 156 | S66: 153 | T66: 155 | U66: 785 | V66: 800 | W66: 807 | X66: 822 | Y66: 605 | Z66: 616 | AA66: 580 | AB66: 591 | AC66: 617 | AD66: 630 | AE66: 577 | AF66: 589 | AG66: 611 | AH66: 623 | AI66: 418 | AJ66: 427 | AK66: 374 | AL66: 381 | AM66: 302 | AN66: 307 | AO66: 223 | AP66: 228 | AQ66: 152 | AR66: 155 | AS66: 155 | AT66: 158 | AU66: 113 | AV66: 115 | AW66: 93 | AX66: 95 | AY66: 78 | AZ66: 79 | BA66: 348 | BB66: 26 | BC66: 3703 | BD66: 874 | BE66: 697 | BF66: 3006 | BG66: 440 | BI66: 339 | BJ66: 1256 | BK66: 10848 | BL66: 12533 | BM66: 3280 | BN66: 573 | BO66: =SUM(#REF!) ->  | BP66: =SUM(#REF!) ->  | BR66: 6853 | BS66: 6096 | BT66: 157
B67: 05 | C67: 60 | D67: 5659 | E67: C.S. OYON | F67: 9997 | H67: 4948 | I67: 5049 | K67: 114 | L67: 117 | M67: 109 | N67: 112 | O67: 106 | P67: 108 | Q67: 104 | R67: 106 | S67: 103 | T67: 106 | U67: 534 | V67: 544 | W67: 549 | X67: 559 | Y67: 410 | Z67: 419 | AA67: 395 | AB67: 402 | AC67: 420 | AD67: 429 | AE67: 393 | AF67: 400 | AG67: 416 | AH67: 425 | AI67: 284 | AJ67: 290 | AK67: 254 | AL67: 259 | AM67: 205 | AN67: 209 | AO67: 152 | AP67: 154 | AQ67: 103 | AR67: 105 | AS67: 105 | AT67: 108 | AU67: 77 | AV67: 78 | AW67: 63 | AX67: 65 | AY67: 52 | AZ67: 54 | BA67: 237 | BB67: 18 | BC67: 2519 | BD67: 594 | BE67: 473 | BF67: 2044 | BG67: 300 | BI67: 231 | BJ67: 854 | BK67: 7380 | BL67: 8523 | BM67: 2228 | BN67: 389 | BO67: =SUM(#REF!) ->  | BP67: =SUM(#REF!) ->  | BR67: 4661 | BS67: 4145 | BT67: 106
B68: 05 | C68: 61 | D68: 5660 | E68: P.S. MALLAY | F68: 1470 | H68: 725 | I68: 745 | K68: 17 | L68: 17 | M68: 16 | N68: 16 | O68: 16 | P68: 16 | Q68: 15 | R68: 16 | S68: 15 | T68: 16 | U68: 79 | V68: 80 | W68: 81 | X68: 82 | Y68: 61 | Z68: 62 | AA68: 57 | AB68: 59 | AC68: 61 | AD68: 63 | AE68: 57 | AF68: 59 | AG68: 60 | AH68: 62 | AI68: 42 | AJ68: 43 | AK68: 38 | AL68: 38 | AM68: 30 | AN68: 31 | AO68: 22 | AP68: 23 | AQ68: 15 | AR68: 16 | AS68: 15 | AT68: 16 | AU68: 11 | AV68: 12 | AW68: 9 | AX68: 10 | AY68: 8 | AZ68: 8 | BA68: 35 | BB68: 3 | BC68: 370 | BD68: 87 | BE68: 70 | BF68: 301 | BG68: 44 | BI68: 34 | BJ68: 126 | BK68: 1083 | BL68: 1252 | BM68: 329 | BN68: 58 | BO68: =SUM(#REF!) ->  | BP68: =SUM(#REF!) ->  | BR68: 685 | BS68: 609 | BT68: 16
B69: 05 | C69: 62 | D69: 5661 | E69: P.S. NAVA | F69: 147 | H69: 67 | I69: 80 | K69: 1 | L69: 2 | M69: 1 | N69: 2 | O69: 1 | P69: 2 | Q69: 1 | R69: 2 | S69: 1 | T69: 2 | U69: 7 | V69: 8 | W69: 7 | X69: 8 | Y69: 6 | Z69: 6 | AA69: 6 | AB69: 7 | AC69: 6 | AD69: 7 | AE69: 6 | AF69: 7 | AG69: 6 | AH69: 6 | AI69: 4 | AJ69: 4 | AK69: 4 | AL69: 4 | AM69: 3 | AN69: 3 | AO69: 2 | AP69: 3 | AQ69: 1 | AR69: 2 | AS69: 1 | AT69: 2 | AU69: 1 | AV69: 1 | AW69: 1 | AX69: 1 | AY69: 1 | AZ69: 1 | BA69: 3 | BB69: 0 | BC69: 37 | BD69: 9 | BE69: 7 | BF69: 30 | BG69: 4 | BI69: 3 | BJ69: 12 | BK69: 108 | BL69: 126 | BM69: 33 | BN69: 6 | BO69: =SUM(#REF!) ->  | BP69: =SUM(#REF!) ->  | BR69: 68 | BS69: 62 | BT69: 2
B70: 05 | C70: 63 | D70: 5662 | E70: P.S. TINTA | F70: 1176 | H70: 581 | I70: 595 | K70: 13 | L70: 14 | M70: 13 | N70: 13 | O70: 12 | P70: 13 | Q70: 12 | R70: 13 | S70: 12 | T70: 13 | U70: 63 | V70: 64 | W70: 65 | X70: 66 | Y70: 48 | Z70: 49 | AA70: 47 | AB70: 47 | AC70: 49 | AD70: 50 | AE70: 46 | AF70: 46 | AG70: 49 | AH70: 50 | AI70: 34 | AJ70: 34 | AK70: 30 | AL70: 30 | AM70: 24 | AN70: 25 | AO70: 18 | AP70: 18 | AQ70: 12 | AR70: 13 | AS70: 12 | AT70: 13 | AU70: 9 | AV70: 9 | AW70: 7 | AX70: 8 | AY70: 6 | AZ70: 7 | BA70: 28 | BB70: 2 | BC70: 296 | BD70: 70 | BE70: 56 | BF70: 240 | BG70: 35 | BI70: 27 | BJ70: 101 | BK70: 867 | BL70: 1002 | BM70: 263 | BN70: 46 | BO70: =SUM(#REF!) ->  | BP70: =SUM(#REF!) ->  | BR70: 548 | BS70: 487 | BT70: 13
B71: 05 | C71: 64 | D71: 5648 | E71: P.S. RAPAZ | F71: 1911 | H71: 946 | I71: 965 | K71: 22 | L71: 22 | M71: 21 | N71: 21 | O71: 20 | P71: 21 | Q71: 20 | R71: 20 | S71: 20 | T71: 20 | U71: 102 | V71: 104 | W71: 105 | X71: 107 | Y71: 79 | Z71: 81 | AA71: 75 | AB71: 76 | AC71: 80 | AD71: 82 | AE71: 75 | AF71: 77 | AG71: 79 | AH71: 81 | AI71: 54 | AJ71: 56 | AK71: 49 | AL71: 49 | AM71: 39 | AN71: 40 | AO71: 29 | AP71: 30 | AQ71: 20 | AR71: 20 | AS71: 20 | AT71: 21 | AU71: 15 | AV71: 15 | AW71: 12 | AX71: 12 | AY71: 10 | AZ71: 10 | BA71: 45 | BB71: 3 | BC71: 481 | BD71: 114 | BE71: 91 | BF71: 391 | BG71: 57 | BI71: 44 | BJ71: 163 | BK71: 1410 | BL71: 1630 | BM71: 427 | BN71: 74 | BO71: =SUM(#REF!) ->  | BP71: =SUM(#REF!) ->  | BR71: 891 | BS71: 793 | BT71: 20
A72: 150902 | C72: 65 | D72: 150902 | E72: DISTRITO ANDAJES | F72: 1061 | H72: 526 | I72: 535 | K72: 3 | L72: 3 | M72: 3 | N72: 4 | O72: 4 | P72: 4 | Q72: 4 | R72: 5 | S72: 4 | T72: 5 | U72: 29 | V72: 29 | W72: 32 | X72: 33 | Y72: 30 | Z72: 30 | AA72: 27 | AB72: 28 | AC72: 33 | AD72: 33 | AE72: 23 | AF72: 24 | AG72: 37 | AH72: 37 | AI72: 29 | AJ72: 29 | AK72: 38 | AL72: 38 | AM72: 25 | AN72: 26 | AO72: 34 | AP72: 34 | AQ72: 31 | AR72: 32 | AS72: 48 | AT72: 48 | AU72: 27 | AV72: 27 | AW72: 40 | AX72: 40 | AY72: 25 | AZ72: 26 | BA72: 6 | BB72: 0 | BC72: 216 | BD72: 27 | BE72: 30 | BF72: 186 | BG72: 10 | BI72: =SUM(K72:L72) -> 6 | BJ72: =SUM(M72:T72) -> 33 | BK72: =SUM(K72:AH72) -> 464 | BL72: =SUM(U72:AT72) -> 837 | BM72: =SUM(AI72:AT72) -> 412 | BN72: =SUM(AU72:AZ72) -> 185 | BO72: =SUM(#REF!) ->  | BP72: =SUM(#REF!) ->  | BR72: =SUM(U72:AD72) -> 304 | BS72: =SUM(AE72:AX72) -> 667 | BT72: =SUM(AY72:AZ72) -> 51
B73: 05 | C73: 66 | D73: 5654 | E73: P.S. ANDAJES | F73: 1061 | H73: 526 | I73: 535 | K73: 3 | L73: 3 | M73: 3 | N73: 4 | O73: 4 | P73: 4 | Q73: 4 | R73: 5 | S73: 4 | T73: 5 | U73: 29 | V73: 29 | W73: 32 | X73: 33 | Y73: 30 | Z73: 30 | AA73: 27 | AB73: 28 | AC73: 33 | AD73: 33 | AE73: 23 | AF73: 24 | AG73: 37 | AH73: 37 | AI73: 29 | AJ73: 29 | AK73: 38 | AL73: 38 | AM73: 25 | AN73: 26 | AO73: 34 | AP73: 34 | AQ73: 31 | AR73: 32 | AS73: 48 | AT73: 48 | AU73: 27 | AV73: 27 | AW73: 40 | AX73: 40 | AY73: 25 | AZ73: 26 | BA73: 6 | BB73: 0 | BC73: 216 | BD73: 27 | BE73: 30 | BF73: 186 | BG73: 10 | BI73: 6 | BJ73: 33 | BK73: 464 | BL73: 837 | BM73: 412 | BN73: 185 | BO73: =SUM(#REF!) ->  | BP73: =SUM(#REF!) ->  | BR73: 304 | BS73: 667 | BT73: 51
A74: 150903 | C74: 67 | D74: 150903 | E74: DISTRITO CAUJUL | F74: 1052 | H74: 521 | I74: 531 | K74: 8 | L74: 8 | M74: 9 | N74: 9 | O74: 10 | P74: 10 | Q74: 11 | R74: 11 | S74: 11 | T74: 12 | U74: 54 | V74: 56 | W74: 44 | X74: 44 | Y74: 38 | Z74: 38 | AA74: 39 | AB74: 39 | AC74: 32 | AD74: 32 | AE74: 35 | AF74: 35 | AG74: 36 | AH74: 37 | AI74: 28 | AJ74: 29 | AK74: 34 | AL74: 34 | AM74: 25 | AN74: 26 | AO74: 21 | AP74: 22 | AQ74: 21 | AR74: 21 | AS74: 26 | AT74: 27 | AU74: 14 | AV74: 15 | AW74: 13 | AX74: 13 | AY74: 12 | AZ74: 13 | BA74: 16 | BB74: 1 | BC74: 242 | BD74: 44 | BE74: 30 | BF74: 212 | BG74: 23 | BI74: 16 | BJ74: 83 | BK74: 658 | BL74: 873 | BM74: 314 | BN74: 80 | BO74: =SUM(#REF!) ->  | BP74: =SUM(#REF!) ->  | BR74: 416 | BS74: 512 | BT74: 25
B75: 05 | C75: 68 | D75: 5655 | E75: P.S. CAUJUL | F75: 1052 | H75: 521 | I75: 531 | K75: 8 | L75: 8 | M75: 9 | N75: 9 | O75: 10 | P75: 10 | Q75: 11 | R75: 11 | S75: 11 | T75: 12 | U75: 54 | V75: 56 | W75: 44 | X75: 44 | Y75: 38 | Z75: 38 | AA75: 39 | AB75: 39 | AC75: 32 | AD75: 32 | AE75: 35 | AF75: 35 | AG75: 36 | AH75: 37 | AI75: 28 | AJ75: 29 | AK75: 34 | AL75: 34 | AM75: 25 | AN75: 26 | AO75: 21 | AP75: 22 | AQ75: 21 | AR75: 21 | AS75: 26 | AT75: 27 | AU75: 14 | AV75: 15 | AW75: 13 | AX75: 13 | AY75: 12 | AZ75: 13 | BA75: 16 | BB75: 1 | BC75: 242 | BD75: 44 | BE75: 30 | BF75: 212 | BG75: 23 | BI75: 16 | BJ75: 83 | BK75: 658 | BL75: 873 | BM75: 314 | BN75: 80 | BO75: =SUM(#REF!) ->  | BP75: =SUM(#REF!) ->  | BR75: 416 | BS75: 512 | BT75: 25
A76: 150904 | C76: 69 | D76: 150904 | E76: DISTRITO COCHAMARCA | F76: 1632 | H76: 806 | I76: 826 | K76: 14 | L76: 15 | M76: 15 | N76: 16 | O76: 16 | P76: 17 | Q76: 17 | R76: 18 | S76: 18 | T76: 18 | U76: 98 | V76: 100 | W76: 98 | X76: 100 | Y76: 71 | Z76: 73 | AA76: 58 | AB76: 60 | AC76: 39 | AD76: 40 | AE76: 54 | AF76: 55 | AG76: 56 | AH76: 57 | AI76: 49 | AJ76: 50 | AK76: 39 | AL76: 39 | AM76: 31 | AN76: 31 | AO76: 32 | AP76: 33 | AQ76: 26 | AR76: 27 | AS76: 20 | AT76: 21 | AU76: 21 | AV76: 21 | AW76: 18 | AX76: 18 | AY76: 16 | AZ76: 17 | BA76: 30 | BB76: 2 | BC76: 357 | BD76: 97 | BE76: 62 | BF76: 295 | BG76: 40 | BI76: 29 | BJ76: 135 | BK76: 1123 | BL76: 1357 | BM76: 398 | BN76: 111 | BO76: =SUM(#REF!) ->  | BP76: =SUM(#REF!) ->  | BR76: 737 | BS76: 698 | BT76: 33
B77: 03 | C77: 70 | D77: 5783 | E77: P.S. COCHAMARCA | F77: 653 | H77: 321 | I77: 332 | K77: 6 | L77: 6 | M77: 6 | N77: 6 | O77: 6 | P77: 7 | Q77: 7 | R77: 7 | S77: 7 | T77: 7 | U77: 39 | V77: 40 | W77: 39 | X77: 39 | Y77: 28 | Z77: 29 | AA77: 23 | AB77: 24 | AC77: 16 | AD77: 17 | AE77: 22 | AF77: 23 | AG77: 23 | AH77: 23 | AI77: 20 | AJ77: 20 | AK77: 15 | AL77: 16 | AM77: 12 | AN77: 13 | AO77: 13 | AP77: 13 | AQ77: 10 | AR77: 11 | AS77: 8 | AT77: 8 | AU77: 8 | AV77: 9 | AW77: 7 | AX77: 7 | AY77: 6 | AZ77: 7 | BA77: 12 | BB77: 1 | BC77: 143 | BD77: 39 | BE77: 25 | BF77: 118 | BG77: 16 | BI77: 12 | BJ77: 53 | BK77: 450 | BL77: 544 | BM77: 159 | BN77: 44 | BO77: =SUM(#REF!) ->  | BP77: =SUM(#REF!) ->  | BR77: 294 | BS77: 281 | BT77: 13
B78: 03 | C78: 71 | D78: 5784 | E78: P.S. COLCAPAMPA | F78: 734 | H78: 361 | I78: 373 | K78: 6 | L78: 7 | M78: 7 | N78: 7 | O78: 7 | P78: 8 | Q78: 8 | R78: 8 | S78: 8 | T78: 9 | U78: 44 | V78: 45 | W78: 45 | X78: 46 | Y78: 32 | Z78: 33 | AA78: 26 | AB78: 26 | AC78: 17 | AD78: 17 | AE78: 24 | AF78: 24 | AG78: 25 | AH78: 25 | AI78: 22 | AJ78: 22 | AK78: 17 | AL78: 18 | AM78: 14 | AN78: 14 | AO78: 14 | AP78: 15 | AQ78: 12 | AR78: 12 | AS78: 9 | AT78: 10 | AU78: 9 | AV78: 10 | AW78: 8 | AX78: 9 | AY78: 7 | AZ78: 8 | BA78: 13 | BB78: 1 | BC78: 160 | BD78: 43 | BE78: 28 | BF78: 133 | BG78: 18 | BI78: 13 | BJ78: 62 | BK78: 504 | BL78: 608 | BM78: 179 | BN78: 51 | BO78: =SUM(#REF!) ->  | BP78: =SUM(#REF!) ->  | BR78: 331 | BS78: 313 | BT78: 15
B79: 03 | C79: 72 | D79: 5785 | E79: P.S. YARUCAYA | F79: 245 | H79: 117 | I79: 128 | K79: 2 | L79: 2 | M79: 2 | N79: 3 | O79: 2 | P79: 3 | Q79: 2 | R79: 3 | S79: 2 | T79: 3 | U79: 15 | V79: 15 | W79: 14 | X79: 15 | Y79: 11 | Z79: 11 | AA79: 9 | AB79: 10 | AC79: 6 | AD79: 6 | AE79: 8 | AF79: 8 | AG79: 8 | AH79: 9 | AI79: 7 | AJ79: 8 | AK79: 6 | AL79: 6 | AM79: 4 | AN79: 5 | AO79: 5 | AP79: 5 | AQ79: 4 | AR79: 4 | AS79: 3 | AT79: 3 | AU79: 3 | AV79: 3 | AW79: 2 | AX79: 3 | AY79: 2 | AZ79: 3 | BA79: 5 | BB79: 0 | BC79: 54 | BD79: 15 | BE79: 9 | BF79: 44 | BG79: 6 | BI79: 4 | BJ79: 20 | BK79: 169 | BL79: 205 | BM79: 60 | BN79: 16 | BO79: =SUM(#REF!) ->  | BP79: =SUM(#REF!) ->  | BR79: 112 | BS79: 104 | BT79: 5
A80: 150905 | C80: 73 | D80: 150905 | E80: DISTRITO NAVAN | F80: 1210 | H80: 600 | I80: 610 | K80: 18 | L80: 18 | M80: 15 | N80: 15 | O80: 12 | P80: 13 | Q80: 11 | R80: 11 | S80: 10 | T80: 10 | U80: 44 | V80: 44 | W80: 49 | X80: 50 | Y80: 33 | Z80: 33 | AA80: 51 | AB80: 51 | AC80: 43 | AD80: 44 | AE80: 39 | AF80: 39 | AG80: 43 | AH80: 43 | AI80: 40 | AJ80: 41 | AK80: 35 | AL80: 35 | AM80: 29 | AN80: 30 | AO80: 22 | AP80: 23 | AQ80: 32 | AR80: 33 | AS80: 14 | AT80: 15 | AU80: 32 | AV80: 32 | AW80: 15 | AX80: 16 | AY80: 13 | AZ80: 14 | BA80: 37 | BB80: 3 | BC80: 266 | BD80: 50 | BE80: 28 | BF80: 238 | BG80: 51 | BI80: 36 | BJ80: 97 | BK80: 739 | BL80: 955 | BM80: 349 | BN80: 122 | BO80: =SUM(#REF!) ->  | BP80: =SUM(#REF!) ->  | BR80: 442 | BS80: 608 | BT80: 27
B81: 05 | C81: 74 | D81: 5656 | E81: P.S. NAVAN | F81: 1210 | H81: 600 | I81: 610 | K81: 18 | L81: 18 | M81: 15 | N81: 15 | O81: 12 | P81: 13 | Q81: 11 | R81: 11 | S81: 10 | T81: 10 | U81: 44 | V81: 44 | W81: 49 | X81: 50 | Y81: 33 | Z81: 33 | AA81: 51 | AB81: 51 | AC81: 43 | AD81: 44 | AE81: 39 | AF81: 39 | AG81: 43 | AH81: 43 | AI81: 40 | AJ81: 41 | AK81: 35 | AL81: 35 | AM81: 29 | AN81: 30 | AO81: 22 | AP81: 23 | AQ81: 32 | AR81: 33 | AS81: 14 | AT81: 15 | AU81: 32 | AV81: 32 | AW81: 15 | AX81: 16 | AY81: 13 | AZ81: 14 | BA81: 37 | BB81: 3 | BC81: 266 | BD81: 50 | BE81: 28 | BF81: 238 | BG81: 51 | BI81: 36 | BJ81: 97 | BK81: 739 | BL81: 955 | BM81: 349 | BN81: 122 | BO81: =SUM(#REF!) ->  | BP81: =SUM(#REF!) ->  | BR81: 442 | BS81: 608 | BT81: 27
A82: 150906 | C82: 75 | D82: 150906 | E82: DISTRITO PACHANGARA | F82: 3476 | H82: 1723 | I82: 1753 | K82: 37 | L82: 37 | M82: 33 | N82: 34 | O82: 30 | P82: 31 | Q82: 29 | R82: 29 | S82: 28 | T82: 29 | U82: 149 | V82: 152 | W82: 173 | X82: 176 | Y82: 139 | Z82: 141 | AA82: 117 | AB82: 119 | AC82: 116 | AD82: 118 | AE82: 104 | AF82: 106 | AG82: 118 | AH82: 120 | AI82: 95 | AJ82: 97 | AK82: 94 | AL82: 95 | AM82: 87 | AN82: 88 | AO82: 91 | AP82: 93 | AQ82: 75 | AR82: 76 | AS82: 70 | AT82: 71 | AU82: 66 | AV82: 68 | AW82: 40 | AX82: 41 | AY82: 32 | AZ82: 32 | BA82: 76 | BB82: 6 | BC82: 790 | BD82: 179 | BE82: 135 | BF82: 655 | BG82: 97 | BI82: 74 | BJ82: 243 | BK82: 2165 | BL82: 2880 | BM82: 1032 | BN82: 279 | BO82: =SUM(#REF!) ->  | BP82: =SUM(#REF!) ->  | BR82: 1400 | BS82: 1695 | BT82: 64
B83: 05 | C83: 76 | D83: 5657 | E83: C.S. CHURIN | F83: 2155 | H83: 1069 | I83: 1086 | K83: 23 | L83: 23 | M83: 21 | N83: 21 | O83: 19 | P83: 19 | Q83: 18 | R83: 18 | S83: 18 | T83: 18 | U83: 93 | V83: 94 | W83: 107 | X83: 109 | Y83: 86 | Z83: 87 | AA83: 73 | AB83: 74 | AC83: 72 | AD83: 73 | AE83: 64 | AF83: 66 | AG83: 73 | AH83: 74 | AI83: 59 | AJ83: 60 | AK83: 58 | AL83: 59 | AM83: 53 | AN83: 55 | AO83: 56 | AP83: 58 | AQ83: 47 | AR83: 47 | AS83: 44 | AT83: 44 | AU83: 41 | AV83: 42 | AW83: 25 | AX83: 25 | AY83: 19 | AZ83: 20 | BA83: 47 | BB83: 4 | BC83: 490 | BD83: 111 | BE83: 84 | BF83: 406 | BG83: 60 | BI83: 46 | BJ83: 152 | BK83: 1343 | BL83: 1785 | BM83: 640 | BN83: 172 | BO83: =SUM(#REF!) ->  | BP83: =SUM(#REF!) ->  | BR83: 868 | BS83: 1050 | BT83: 39
B84: 05 | C84: 77 | D84: 5658 | E84: P.S. PACHANGARA | F84: 626 | H84: 308 | I84: 318 | K84: 6 | L84: 7 | M84: 6 | N84: 6 | O84: 5 | P84: 6 | Q84: 5 | R84: 5 | S84: 5 | T84: 5 | U84: 27 | V84: 27 | W84: 31 | X84: 32 | Y84: 25 | Z84: 25 | AA84: 21 | AB84: 22 | AC84: 21 | AD84: 21 | AE84: 19 | AF84: 19 | AG84: 21 | AH84: 22 | AI84: 17 | AJ84: 18 | AK84: 17 | AL84: 17 | AM84: 16 | AN84: 16 | AO84: 16 | AP84: 17 | AQ84: 13 | AR84: 14 | AS84: 12 | AT84: 13 | AU84: 12 | AV84: 12 | AW84: 7 | AX84: 8 | AY84: 6 | AZ84: 6 | BA84: 14 | BB84: 1 | BC84: 142 | BD84: 32 | BE84: 24 | BF84: 118 | BG84: 18 | BI84: 13 | BJ84: 43 | BK84: 389 | BL84: 519 | BM84: 186 | BN84: 51 | BO84: =SUM(#REF!) ->  | BP84: =SUM(#REF!) ->  | BR84: 252 | BS84: 306 | BT84: 12
B85: 05 | C85: 78 | D85: 5649 | E85: P.S. HUANCAHUASI | F85: 695 | H85: 343 | I85: 352 | K85: 7 | L85: 8 | M85: 6 | N85: 7 | O85: 6 | P85: 6 | Q85: 6 | R85: 6 | S85: 5 | T85: 6 | U85: 30 | V85: 30 | W85: 35 | X85: 35 | Y85: 28 | Z85: 29 | AA85: 23 | AB85: 23 | AC85: 23 | AD85: 24 | AE85: 21 | AF85: 21 | AG85: 24 | AH85: 24 | AI85: 19 | AJ85: 19 | AK85: 19 | AL85: 19 | AM85: 17 | AN85: 18 | AO85: 18 | AP85: 19 | AQ85: 15 | AR85: 15 | AS85: 14 | AT85: 14 | AU85: 13 | AV85: 14 | AW85: 8 | AX85: 8 | AY85: 6 | AZ85: 7 | BA85: 15 | BB85: 1 | BC85: 158 | BD85: 36 | BE85: 27 | BF85: 131 | BG85: 19 | BI85: 15 | BJ85: 48 | BK85: 433 | BL85: 576 | BM85: 206 | BN85: 56 | BO85: =SUM(#REF!) ->  | BP85: =SUM(#REF!) ->  | BR85: 280 | BS85: 339 | BT85: 13
C86: 79 | E86: PROVINCIA HUARAL | F86: 1131 | H86: 560 | I86: 571 | K86: 8 | L86: 8 | M86: 10 | N86: 10 | O86: 11 | P86: 11 | Q86: 11 | R86: 12 | S86: 12 | T86: 13 | U86: 58 | V86: 60 | W86: 44 | X86: 44 | Y86: 39 | Z86: 39 | AA86: 45 | AB86: 46 | AC86: 39 | AD86: 40 | AE86: 33 | AF86: 34 | AG86: 34 | AH86: 34 | AI86: 33 | AJ86: 33 | AK86: 35 | AL86: 36 | AM86: 29 | AN86: 29 | AO86: 22 | AP86: 23 | AQ86: 19 | AR86: 19 | AS86: 29 | AT86: 29 | AU86: 19 | AV86: 20 | AW86: 14 | AX86: 14 | AY86: 16 | AZ86: 17 | BA86: 17 | BB86: 1 | BC86: 270 | BD86: 43 | BE86: 33 | BF86: 236 | BG86: 22 | BI86: 16 | BJ86: 90 | BK86: 695 | BL86: 925 | BM86: 336 | BN86: 100 | BO86: =SUM(#REF!) ->  | BP86: =SUM(#REF!) ->  | BR86: 454 | BS86: 538 | BT86: 33
C87: 80 | D87: 150600 | E87: IHUARI - ACOTAMA | F87: 1131 | H87: 560 | I87: 571 | K87: 8 | L87: 8 | M87: 10 | N87: 10 | O87: 11 | P87: 11 | Q87: 11 | R87: 12 | S87: 12 | T87: 13 | U87: 58 | V87: 60 | W87: 44 | X87: 44 | Y87: 39 | Z87: 39 | AA87: 45 | AB87: 46 | AC87: 39 | AD87: 40 | AE87: 33 | AF87: 34 | AG87: 34 | AH87: 34 | AI87: 33 | AJ87: 33 | AK87: 35 | AL87: 36 | AM87: 29 | AN87: 29 | AO87: 22 | AP87: 23 | AQ87: 19 | AR87: 19 | AS87: 29 | AT87: 29 | AU87: 19 | AV87: 20 | AW87: 14 | AX87: 14 | AY87: 16 | AZ87: 17 | BA87: 17 | BB87: 1 | BC87: 270 | BD87: 43 | BE87: 33 | BF87: 236 | BG87: 22 | BI87: 16 | BJ87: 90 | BK87: 695 | BL87: 925 | BM87: 336 | BN87: 100 | BO87: =SUM(#REF!) ->  | BP87: =SUM(#REF!) ->  | BR87: 454 | BS87: 538 | BT87: 33
A88: 150606 | B88: 03 | C88: 81
C89: 82 | E89: MICRORED HUAURA | F89: =SUM(H89:I89) ->  | H89: =K89+M89+O89+Q89+S89+U89+W89+Y89+AA89+AC89+AE89+AG89+AI89+AK89+AM89+AO89+AQ89+AS89+AU89+AW89+AY89+#REF!+#REF!+#REF!+#REF!+#REF!+#REF!+#REF!+#REF!+#REF!+#REF!+#REF!+#REF! ->  | I89: =L89+N89+P89+R89+T89+V89+X89+Z89+AB89+AD89+AF89+AH89+AJ89+AL89+AN89+AP89+AR89+AT89+AV89+AX89+AZ89+#REF!+#REF!+#REF!+#REF!+#REF!+#REF!+#REF!+#REF!+#REF!+#REF!+#REF!+#REF! ->  | K89: =K13+K24 -> 336 | L89: =L13+L24 -> 343 | M89: 324 | N89: 329 | O89: 316 | P89: 323 | Q89: 314 | R89: 320 | S89: 317 | T89: 322 | U89: 1701 | V89: 1733 | W89: 1965 | X89: 2002 | Y89: 1980 | Z89: 2018 | AA89: 1780 | AB89: 1815 | AC89: 1483 | AD89: 1513 | AE89: 1368 | AF89: 1395 | AG89: 1325 | AH89: 1350 | AI89: 1162 | AJ89: 1186 | AK89: 1054 | AL89: 1075 | AM89: 904 | AN89: 923 | AO89: 737 | AP89: 752 | AQ89: 603 | AR89: 614 | AS89: 504 | AT89: 513 | AU89: 440 | AV89: 447 | AW89: 273 | AX89: 278 | AY89: 276 | AZ89: 282 | BA89: =BA13+BA24 -> 697 | BB89: 52 | BC89: 10660 | BD89: 1945 | BE89: 1983 | BF89: 8677 | BG89: 877 | BI89: =BI13+BI24 -> 679 | BJ89: 2565 | BK89: 26672 | BL89: 33455 | BM89: 10027 | BN89: 1996 | BR89: =BR13+BR24 -> 17990 | BS89: 16903 | BT89: 558
B90: 1 | C90: 83 | E90: MICRORED HUALMAY | F90: =SUM(H90:I90) ->  | H90: =K90+M90+O90+Q90+S90+U90+W90+Y90+AA90+AC90+AE90+AG90+AI90+AK90+AM90+AO90+AQ90+AS90+AU90+AW90+AY90+#REF!+#REF!+#REF!+#REF!+#REF!+#REF!+#REF!+#REF!+#REF!+#REF!+#REF!+#REF! ->  | I90: =L90+N90+P90+R90+T90+V90+X90+Z90+AB90+AD90+AF90+AH90+AJ90+AL90+AN90+AP90+AR90+AT90+AV90+AX90+AZ90+#REF!+#REF!+#REF!+#REF!+#REF!+#REF!+#REF!+#REF!+#REF!+#REF!+#REF!+#REF! ->  | K90: =K44+K20+K16+K12 -> 716 | L90: =L44+L20+L16+L12 -> 729 | M90: 678 | N90: 693 | O90: 656 | P90: 668 | Q90: 643 | R90: 656 | S90: 641 | T90: 652 | U90: 3391 | V90: 3458 | W90: 3851 | X90: 3928 | Y90: 3689 | Z90: 3762 | AA90: 3669 | AB90: 3741 | AC90: 3177 | AD90: 3240 | AE90: 3021 | AF90: 3080 | AG90: 3075 | AH90: 3136 | AI90: 2697 | AJ90: 2749 | AK90: 2315 | AL90: 2360 | AM90: 2148 | AN90: 2191 | AO90: 1954 | AP90: 1993 | AQ90: 1620 | AR90: 1653 | AS90: 1317 | AT90: 1343 | AU90: 1062 | AV90: 1083 | AW90: 771 | AX90: 787 | AY90: 896 | AZ90: 913 | BA90: =BA44+BA20+BA16+BA12 -> 1482 | BB90: 112 | BC90: 22376 | BD90: 3866 | BE90: 3729 | BF90: 18647 | BG90: 1861 | BI90: =BI44+BI20+BI16+BI12 -> 1445 | BJ90: 5287 | BK90: 54950 | BL90: 72558 | BM90: 24340 | BN90: 5512 | BR90: =BR44+BR20+BR16+BR12 -> 35906 | BS90: 40355 | BT90: 1809
B91: 2 | C91: 84 | E91: MICRORED SAYAN | H91: =K91+M91+O91+Q91+S91+U91+W91+Y91+AA91+AC91+AE91+AG91+AI91+AK91+AM91+AO91+AQ91+AS91+AU91+AW91+AY91+#REF!+#REF!+#REF!+#REF!+#REF!+#REF!+#REF!+#REF!+#REF!+#REF!+#REF!+#REF! ->  | I91: =L91+N91+P91+R91+T91+V91+X91+Z91+AB91+AD91+AF91+AH91+AJ91+AL91+AN91+AP91+AR91+AT91+AV91+AX91+AZ91+#REF!+#REF!+#REF!+#REF!+#REF!+#REF!+#REF!+#REF!+#REF!+#REF!+#REF!+#REF! ->  | K91: =K50+K30+K76++K87 -> 258 | L91: =L50+L30+L76++L87 -> 263 | M91: 261 | N91: 267 | O91: 264 | P91: 269 | Q91: 266 | R91: 273 | S91: 269 | T91: 275 | U91: 1383 | V91: 1412 | W91: 1403 | X91: 1430 | Y91: 1335 | Z91: 1360 | AA91: 1341 | AB91: 1368 | AC91: 1159 | AD91: 1183 | AE91: 1060 | AF91: 1082 | AG91: 1026 | AH91: 1046 | AI91: 840 | AJ91: 857 | AK91: 807 | AL91: 823 | AM91: 653 | AN91: 665 | AO91: 555 | AP91: 567 | AQ91: 473 | AR91: 482 | AS91: 380 | AT91: 387 | AU91: 320 | AV91: 326 | AW91: 216 | AX91: 221 | AY91: 204 | AZ91: 209 | BA91: =BA50+BA30+BA76++BA87 -> 536 | BB91: 39 | BC91: 7750 | BD91: 1469 | BE91: 1408 | BF91: 6341 | BG91: 680 | BI91: =BI50+BI30+BI76++BI87 -> 521 | BJ91: 2144 | BK91: 20253 | BL91: 25077 | BM91: 7489 | BN91: 1496 | BR91: =BR50+BR30+BR76++BR87 -> 13374 | BS91: 12786 | BT91: 413
B92: 3 | C92: 85 | E92: MICRORED VEGUETA | H92: =K92+M92+O92+Q92+S92+U92+W92+Y92+AA92+AC92+AE92+AG92+AI92+AK92+AM92+AO92+AQ92+AS92+AU92+AW92+AY92+#REF!+#REF!+#REF!+#REF!+#REF!+#REF!+#REF!+#REF!+#REF!+#REF!+#REF!+#REF! ->  | I92: =L92+N92+P92+R92+T92+V92+X92+Z92+AB92+AD92+AF92+AH92+AJ92+AL92+AN92+AP92+AR92+AT92+AV92+AX92+AZ92+#REF!+#REF!+#REF!+#REF!+#REF!+#REF!+#REF!+#REF!+#REF!+#REF!+#REF!+#REF! ->  | K92: =K58 -> 231 | L92: =L58 -> 236 | M92: 211 | N92: 216 | O92: 197 | P92: 201 | Q92: 187 | R92: 191 | S92: 182 | T92: 185 | U92: 924 | V92: 942 | W92: 1066 | X92: 1087 | Y92: 1076 | Z92: 1098 | AA92: 1045 | AB92: 1066 | AC92: 848 | AD92: 864 | AE92: 753 | AF92: 767 | AG92: 731 | AH92: 746 | AI92: 656 | AJ92: 668 | AK92: 616 | AL92: 628 | AM92: 524 | AN92: 534 | AO92: 459 | AP92: 469 | AQ92: 387 | AR92: 394 | AS92: 311 | AT92: 317 | AU92: 265 | AV92: 270 | AW92: 196 | AX92: 200 | AY92: 210 | AZ92: 215 | BA92: =BA58 -> 479 | BB92: 36 | BC92: 6007 | BD92: 1068 | BE92: 1124 | BF92: 4883 | BG92: 603 | BI92: =BI58 -> 467 | BJ92: 1570 | BK92: 15050 | BL92: 18976 | BM92: 5963 | BN92: 1356 | BR92: =BR58 -> 10016 | BS92: 9891 | BT92: 425
B93: 4 | C93: 86 | E93: MICRORED CHURIN - OYON | H93: =K93+M93+O93+Q93+S93+U93+W93+Y93+AA93+AC93+AE93+AG93+AI93+AK93+AM93+AO93+AQ93+AS93+AU93+AW93+AY93+#REF!+#REF!+#REF!+#REF!+#REF!+#REF!+#REF!+#REF!+#REF!+#REF!+#REF!+#REF! ->  | I93: =L93+N93+P93+R93+T93+V93+X93+Z93+AB93+AD93+AF93+AH93+AJ93+AL93+AN93+AP93+AR93+AT93+AV93+AX93+AZ93+#REF!+#REF!+#REF!+#REF!+#REF!+#REF!+#REF!+#REF!+#REF!+#REF!+#REF!+#REF! ->  | K93: =K82+K66+K72+K74+K80+K35+K40 -> 260 | L93: =L82+L66+L72+L74+L80+L35+L40 -> 263 | M93: 245 | N93: 252 | O93: 237 | P93: 243 | Q93: 234 | R93: 238 | S93: 233 | T93: 238 | U93: 1218 | V93: 1240 | W93: 1281 | X93: 1305 | Y93: 956 | Z93: 973 | AA93: 924 | AB93: 939 | AC93: 934 | AD93: 952 | AE93: 878 | AF93: 895 | AG93: 961 | AH93: 978 | AI93: 725 | AJ93: 741 | AK93: 681 | AL93: 692 | AM93: 580 | AN93: 591 | AO93: 487 | AP93: 498 | AQ93: 425 | AR93: 433 | AS93: 409 | AT93: 418 | AU93: 337 | AV93: 344 | AW93: 262 | AX93: 267 | AY93: 214 | AZ93: 219 | BA93: =BA82+BA66+BA72+BA74+BA80+BA35+BA40 -> 537 | BB93: 40 | BC93: 5972 | BD93: 1352 | BE93: 1025 | BF93: 4947 | BG93: 695 | BI93: =BI82+BI66+BI72+BI74+BI80+BI35+BI40 -> 523 | BJ93: 1920 | BK93: 16877 | BL93: 21114 | BM93: 6680 | BN93: 1643 | BR93: =BR82+BR66+BR72+BR74+BR80+BR35+BR40 -> 10722 | BS93: 11602 | BT93: 433

Sheet Pobla_EESS
D2: POBLACIÓN SEGÚN DISTRITOS Y EE.SS - 2016
D8: SIN MICRORED | K8: MICRORED HUALMAY
D9: DISTRITO | E9: POBLACIÓN | F9: EE.SS | G9: POBLACIÓN | H9: MASCULINO | I9: FEMENINO | K9: DISTRITO | L9: POBLACIÓN | M9: EE.SS | N9: POBLACIÓN | O9: MASCULINO | P9: FEMENINO
D10: HUACHO | E10: =G10 -> 44573 | F10: HOSPITAL HUACHO | G10: =VLOOKUP($F10,Poblacion!$E$8:$I$87,2,FALSE) -> 44573 | H10: =VLOOKUP($F10,Poblacion!$E$8:$I$87,4,FALSE) -> 22070 | I10: =VLOOKUP($F10,Poblacion!$E$8:$I$87,5,FALSE) -> 22503 | K10: HUALMAY | L10: =SUM(N10:N12) -> 29028 | M10: C.S. HUALMAY | N10: =VLOOKUP($M10,Poblacion!$E$8:$I$87,2,FALSE) -> 14514 | O10: =VLOOKUP($M10,Poblacion!$E$8:$I$87,4,FALSE) -> 7185 | P10: =VLOOKUP($M10,Poblacion!$E$8:$I$87,5,FALSE) -> 7329
D11: HUACHO | F11: CLINICA SAN PEDRO | G11: 0 | K11: HUALMAY | M11: P.S. DGO. MANDAMIENTO | N11: =VLOOKUP($M11,Poblacion!$E$8:$I$87,2,FALSE) -> 10160 | O11: =VLOOKUP($M11,Poblacion!$E$8:$I$87,4,FALSE) -> 5029 | P11: =VLOOKUP($M11,Poblacion!$E$8:$I$87,5,FALSE) -> 5131
D12: HUACHO | F12: ESSALUD GUSTAVO LA NATA | G12: 0 | K12: HUALMAY | M12: P.S. CAMPO ALEGRE | N12: =VLOOKUP($M12,Poblacion!$E$8:$I$87,2,FALSE) -> 4354 | O12: =VLOOKUP($M12,Poblacion!$E$8:$I$87,4,FALSE) -> 2158 | P12: =VLOOKUP($M12,Poblacion!$E$8:$I$87,5,FALSE) -> 2196
D13: HUACHO | F13: CLINICA SAN BARTOLOME | G13: 0 | K13: S.MARIA | L13: =SUM(N13:N17) -> 34011 | M13: C.S. SANTA MARIA | N13: =VLOOKUP($M13,Poblacion!$E$8:$I$87,2,FALSE) -> 9523 | O13: =VLOOKUP($M13,Poblacion!$E$8:$I$87,4,FALSE) -> 4716 | P13: =VLOOKUP($M13,Poblacion!$E$8:$I$87,5,FALSE) -> 4807
D14: HUACHO | F14: GOLD ESTANDAR EIRL. | G14: 0 | K14: S.MARIA | M14: P.S. CHONTA | N14: =VLOOKUP($M14,Poblacion!$E$8:$I$87,2,FALSE) -> 5102 | O14: =VLOOKUP($M14,Poblacion!$E$8:$I$87,4,FALSE) -> 2527 | P14: =VLOOKUP($M14,Poblacion!$E$8:$I$87,5,FALSE) -> 2575
D15: CARQUIN | F15: INSITUTO NACIONAL PENITENCIARIO CARQUIN | G15: 0 | K15: S.MARIA | M15: P.S. ZAPATA | N15: =VLOOKUP($M15,Poblacion!$E$8:$I$87,2,FALSE) -> 2721 | O15: =VLOOKUP($M15,Poblacion!$E$8:$I$87,4,FALSE) -> 1346 | P15: =VLOOKUP($M15,Poblacion!$E$8:$I$87,5,FALSE) -> 1375
F16: OTROS ESTABLECIMIENTOS | G16: 0 | K16: S.MARIA | M16: P.S. AMADO VELASQUEZ | N16: =VLOOKUP($M16,Poblacion!$E$8:$I$87,2,FALSE) -> 9183 | O16: =VLOOKUP($M16,Poblacion!$E$8:$I$87,4,FALSE) -> 4546 | P16: =VLOOKUP($M16,Poblacion!$E$8:$I$87,5,FALSE) -> 4637
D17: TOTAL SIN MICRORED | G17: =SUM(G10:G16) -> 44573 | H17: =SUM(H10:H16) -> 22070 | I17: =SUM(I10:I16) -> 22503 | K17: S.MARIA | M17: P.S. SAN BARTOLOME | N17: =VLOOKUP($M17,Poblacion!$E$8:$I$87,2,FALSE) -> 7482 | O17: =VLOOKUP($M17,Poblacion!$E$8:$I$87,4,FALSE) -> 3704 | P17: =VLOOKUP($M17,Poblacion!$E$8:$I$87,5,FALSE) -> 3778
D18: Elaboración: Área de Estadística - RIS Huaura Oyón. | K18: CARQUIN | L18: =N18 -> 6905 | M18: P.S. CARQUIN | N18: =VLOOKUP($M18,Poblacion!$E$8:$I$87,2,FALSE) -> 6905 | O18: =VLOOKUP($M18,Poblacion!$E$8:$I$87,4,FALSE) -> 3418 | P18: =VLOOKUP($M18,Poblacion!$E$8:$I$87,5,FALSE) -> 3487
K19: HUACHO | L19: =N19 -> 14858 | M19: C.S. MANZANARES | N19: =VLOOKUP($M19,Poblacion!$E$8:$I$87,2,FALSE) -> 14858 | O19: =VLOOKUP($M19,Poblacion!$E$8:$I$87,4,FALSE) -> 7355 | P19: =VLOOKUP($M19,Poblacion!$E$8:$I$87,5,FALSE) -> 7503
K20: TOTAL MCR HUALMAY | M20: TOTAL MICRORED HUALMAY | N20: =SUM(N10:N19) -> 84802 | O20: =SUM(O10:O19) -> 41984 | P20: =SUM(P10:P19) -> 42818
K21: =D18 -> Elaboración: Área de Estadística - RIS Huaura Oyón.
D24: MICRORED HUAURA | K24: MICRORED VEGUETA
D25: DISTRITO | E25: POBLACIÓN | F25: EE.SS | G25: POBLACIÓN | H25: MASCULINO | I25: FEMENINO | K25: DISTRITO | L25: POBLACIÓN | M25: EE.SS | N25: POBLACIÓN | O25: MASCULINO | P25: FEMENINO
D26: HUAURA | E26: =SUM(G26:G30) -> 35916 | F26: C.S. HUAURA | G26: =VLOOKUP($F26,Poblacion!$E$8:$I$87,2,FALSE) -> 16162 | H26: =VLOOKUP($F26,Poblacion!$E$8:$I$87,4,FALSE) -> 8004 | I26: =VLOOKUP($F26,Poblacion!$E$8:$I$87,5,FALSE) -> 8158 | K26: VEGUETA | L26: =SUM(N26:N31) -> 22369 | M26: C.S. VEGUETA | N26: =VLOOKUP($M26,Poblacion!$E$8:$I$87,2,FALSE) -> 6710 | O26: =VLOOKUP($M26,Poblacion!$E$8:$I$87,4,FALSE) -> 3321 | P26: =VLOOKUP($M26,Poblacion!$E$8:$I$87,5,FALSE) -> 3389
D27: HUAURA | F27: C.S. SOCORRO | G27: =VLOOKUP($F27,Poblacion!$E$8:$I$87,2,FALSE) -> 13648 | H27: =VLOOKUP($F27,Poblacion!$E$8:$I$87,4,FALSE) -> 6757 | I27: =VLOOKUP($F27,Poblacion!$E$8:$I$87,5,FALSE) -> 6891 | K27: VEGUETA | M27: P.S. MAZO | N27: =VLOOKUP($M27,Poblacion!$E$8:$I$87,2,FALSE) -> 2237 | O27: =VLOOKUP($M27,Poblacion!$E$8:$I$87,4,FALSE) -> 1105 | P27: =VLOOKUP($M27,Poblacion!$E$8:$I$87,5,FALSE) -> 1132
D28: HUAURA | F28: P.S. HUMAYA | G28: =VLOOKUP($F28,Poblacion!$E$8:$I$87,2,FALSE) -> 3592 | H28: =VLOOKUP($F28,Poblacion!$E$8:$I$87,4,FALSE) -> 1780 | I28: =VLOOKUP($F28,Poblacion!$E$8:$I$87,5,FALSE) -> 1812 | K28: VEGUETA | M28: P.S. PRIMAVERA | N28: =VLOOKUP($M28,Poblacion!$E$8:$I$87,2,FALSE) -> 3132 | O28: =VLOOKUP($M28,Poblacion!$E$8:$I$87,4,FALSE) -> 1550 | P28: =VLOOKUP($M28,Poblacion!$E$8:$I$87,5,FALSE) -> 1582
D29: HUAURA | F29: P.S. VILCAHUAURA | G29: =VLOOKUP($F29,Poblacion!$E$8:$I$87,2,FALSE) -> 2155 | H29: =VLOOKUP($F29,Poblacion!$E$8:$I$87,4,FALSE) -> 1066 | I29: =VLOOKUP($F29,Poblacion!$E$8:$I$87,5,FALSE) -> 1089 | K29: VEGUETA | M29: P.S. MARIATEGUI | N29: =VLOOKUP($M29,Poblacion!$E$8:$I$87,2,FALSE) -> 5369 | O29: =VLOOKUP($M29,Poblacion!$E$8:$I$87,4,FALSE) -> 2659 | P29: =VLOOKUP($M29,Poblacion!$E$8:$I$87,5,FALSE) -> 2710
D30: HUAURA | F30: P.S. PEÑICO | G30: =VLOOKUP($F30,Poblacion!$E$8:$I$87,2,FALSE) -> 359 | H30: =VLOOKUP($F30,Poblacion!$E$8:$I$87,4,FALSE) -> 174 | I30: =VLOOKUP($F30,Poblacion!$E$8:$I$87,5,FALSE) -> 185 | K30: VEGUETA | M30: P.S. MEDIO MUNDO | N30: =VLOOKUP($M30,Poblacion!$E$8:$I$87,2,FALSE) -> 4026 | O30: =VLOOKUP($M30,Poblacion!$E$8:$I$87,4,FALSE) -> 1996 | P30: =VLOOKUP($M30,Poblacion!$E$8:$I$87,5,FALSE) -> 2030
D31: AMBAR | E31: =SUM(G31:G32) -> 2779 | F31: C.S. AMBAR | G31: =VLOOKUP($F31,Poblacion!$E$8:$I$87,2,FALSE) -> 1667 | H31: =VLOOKUP($F31,Poblacion!$E$8:$I$87,4,FALSE) -> 826 | I31: =VLOOKUP($F31,Poblacion!$E$8:$I$87,5,FALSE) -> 841 | K31: VEGUETA | M31: P.S. TIROLER | N31: =VLOOKUP($M31,Poblacion!$E$8:$I$87,2,FALSE) -> 895 | O31: =VLOOKUP($M31,Poblacion!$E$8:$I$87,4,FALSE) -> 441 | P31: =VLOOKUP($M31,Poblacion!$E$8:$I$87,5,FALSE) -> 454
D32: AMBAR | F32: P.S. AYNACA | G32: =VLOOKUP($F32,Poblacion!$E$8:$I$87,2,FALSE) -> 1112 | H32: =VLOOKUP($F32,Poblacion!$E$8:$I$87,4,FALSE) -> 550 | I32: =VLOOKUP($F32,Poblacion!$E$8:$I$87,5,FALSE) -> 562 | K32: TOTAL MCR VEGUETA | N32: =SUM(N26:N31) -> 22369 | O32: =SUM(O26:O31) -> 11072 | P32: =SUM(P26:P31) -> 11297
D33: TOTAL MCR HUAURA | F33: TOTAL MICRORED HUAURA | G33: =SUM(G26:G32) -> 38695 | H33: =SUM(H26:H32) -> 19157 | I33: 19538 | K33: =K21 -> Elaboración: Área de Estadística - RIS Huaura Oyón.
D34: =K21 -> Elaboración: Área de Estadística - RIS Huaura Oyón.
D38: MICRORED SAYAN | K38: MICRORED CHURIN OYÓN
D39: DISTRITO | E39: POBLACIÓN | F39: EE.SS | G39: POBLACIÓN | H39: MASCULINO | I39: FEMENINO | K39: DISTRITO | L39: POBLACIÓN | M39: EE.SS | N39: POBLACIÓN | O39: MASCULINO | P39: FEMENINO
D40: SAYAN | E40: =SUM(G40:G46) -> 24465 | F40: C.S. SAYAN | G40: =VLOOKUP($F40,Poblacion!$E$8:$I$87,2,FALSE) -> 10031 | H40: =VLOOKUP($F40,Poblacion!$E$8:$I$87,4,FALSE) -> 4967 | I40: =VLOOKUP($F40,Poblacion!$E$8:$I$87,5,FALSE) -> 5064 | K40: PACHANGARA | L40: =SUM(M40:M42) -> 0 | M40: C.S. CHURIN | N40: =VLOOKUP(M40,Poblacion!$E$5:$I$88,2,FALSE) -> 2155 | O40: =VLOOKUP(M40,Poblacion!$E$5:$I$88,4,FALSE) -> 1069 | P40: =VLOOKUP(M40,Poblacion!$E$5:$I$88,5,FALSE) -> 1086
D41: SAYAN | F41: C.S. 9 DE OCTUBRE | G41: =VLOOKUP($F41,Poblacion!$E$8:$I$87,2,FALSE) -> 5138 | H41: =VLOOKUP($F41,Poblacion!$E$8:$I$87,4,FALSE) -> 2548 | I41: =VLOOKUP($F41,Poblacion!$E$8:$I$87,5,FALSE) -> 2590 | K41: PACHANGARA | M41: P.S. PACHANGARA | N41: =VLOOKUP(M41,Poblacion!$E$5:$I$88,2,FALSE) -> 626 | O41: =VLOOKUP(M41,Poblacion!$E$5:$I$88,4,FALSE) -> 308 | P41: =VLOOKUP(M41,Poblacion!$E$5:$I$88,5,FALSE) -> 318
D42: SAYAN | F42: P.S. CHAMBARA | G42: =VLOOKUP($F42,Poblacion!$E$8:$I$87,2,FALSE) -> 734 | H42: =VLOOKUP($F42,Poblacion!$E$8:$I$87,4,FALSE) -> 361 | I42: =VLOOKUP($F42,Poblacion!$E$8:$I$87,5,FALSE) -> 373 | K42: PACHANGARA | M42: P.S. HUANCAHUASI | N42: =VLOOKUP(M42,Poblacion!$E$5:$I$88,2,FALSE) -> 695 | O42: =VLOOKUP(M42,Poblacion!$E$5:$I$88,4,FALSE) -> 343 | P42: =VLOOKUP(M42,Poblacion!$E$5:$I$88,5,FALSE) -> 352
D43: SAYAN | F43: P.S. LA MERCED | G43: =VLOOKUP($F43,Poblacion!$E$8:$I$87,2,FALSE) -> 1223 | H43: =VLOOKUP($F43,Poblacion!$E$8:$I$87,4,FALSE) -> 605 | I43: =VLOOKUP($F43,Poblacion!$E$8:$I$87,5,FALSE) -> 618 | K43: OYON | L43: =SUM(M43:M47) -> 0 | M43: C.S. OYON | N43: =VLOOKUP(M43,Poblacion!$E$5:$I$88,2,FALSE) -> 9997 | O43: =VLOOKUP(M43,Poblacion!$E$5:$I$88,4,FALSE) -> 4948 | P43: =VLOOKUP(M43,Poblacion!$E$5:$I$88,5,FALSE) -> 5049
D44: SAYAN | F44: P.S. LA VILLA | G44: =VLOOKUP($F44,Poblacion!$E$8:$I$87,2,FALSE) -> 6361 | H44: =VLOOKUP($F44,Poblacion!$E$8:$I$87,4,FALSE) -> 3148 | I44: =VLOOKUP($F44,Poblacion!$E$8:$I$87,5,FALSE) -> 3213 | K44: OYON | M44: P.S. MALLAY | N44: =VLOOKUP(M44,Poblacion!$E$5:$I$88,2,FALSE) -> 1470 | O44: =VLOOKUP(M44,Poblacion!$E$5:$I$88,4,FALSE) -> 725 | P44: =VLOOKUP(M44,Poblacion!$E$5:$I$88,5,FALSE) -> 745
D45: SAYAN | F45: P.S. EL AHORCADO | G45: =VLOOKUP($F45,Poblacion!$E$8:$I$87,2,FALSE) -> 489 | H45: =VLOOKUP($F45,Poblacion!$E$8:$I$87,4,FALSE) -> 238 | I45: =VLOOKUP($F45,Poblacion!$E$8:$I$87,5,FALSE) -> 251 | K45: OYON | M45: P.S. NAVA | N45: =VLOOKUP(M45,Poblacion!$E$5:$I$88,2,FALSE) -> 147 | O45: =VLOOKUP(M45,Poblacion!$E$5:$I$88,4,FALSE) -> 67 | P45: =VLOOKUP(M45,Poblacion!$E$5:$I$88,5,FALSE) -> 80
D46: SAYAN | F46: P.S. LA UNION | G46: =VLOOKUP($F46,Poblacion!$E$8:$I$87,2,FALSE) -> 489 | H46: =VLOOKUP($F46,Poblacion!$E$8:$I$87,4,FALSE) -> 238 | I46: =VLOOKUP($F46,Poblacion!$E$8:$I$87,5,FALSE) -> 251 | K46: OYON | M46: P.S. TINTA | N46: =VLOOKUP(M46,Poblacion!$E$5:$I$88,2,FALSE) -> 1176 | O46: =VLOOKUP(M46,Poblacion!$E$5:$I$88,4,FALSE) -> 581 | P46: =VLOOKUP(M46,Poblacion!$E$5:$I$88,5,FALSE) -> 595
D47: L.PRADO | E47: =SUM(G47:G50) -> 2010 | F47: P.S. AUQUIMARCA | G47: =VLOOKUP($F47,Poblacion!$E$8:$I$87,2,FALSE) -> 101 | H47: =VLOOKUP($F47,Poblacion!$E$8:$I$87,4,FALSE) -> 47 | I47: =VLOOKUP($F47,Poblacion!$E$8:$I$87,5,FALSE) -> 54 | K47: OYON | M47: P.S. RAPAZ | N47: =VLOOKUP(M47,Poblacion!$E$5:$I$88,2,FALSE) -> 1911 | O47: =VLOOKUP(M47,Poblacion!$E$5:$I$88,4,FALSE) -> 946 | P47: =VLOOKUP(M47,Poblacion!$E$5:$I$88,5,FALSE) -> 965
D48: L.PRADO | F48: P.S. PARAN | G48: =VLOOKUP($F48,Poblacion!$E$8:$I$87,2,FALSE) -> 1005 | H48: =VLOOKUP($F48,Poblacion!$E$8:$I$87,4,FALSE) -> 498 | I48: =VLOOKUP($F48,Poblacion!$E$8:$I$87,5,FALSE) -> 507 | K48: ANDAJES | L48: =N48 -> 1061 | M48: P.S. ANDAJES | N48: =VLOOKUP(M48,Poblacion!$E$5:$I$88,2,FALSE) -> 1061 | O48: =VLOOKUP(M48,Poblacion!$E$5:$I$88,4,FALSE) -> 526 | P48: =VLOOKUP(M48,Poblacion!$E$5:$I$88,5,FALSE) -> 535
D49: L.PRADO | F49: P.S. SANTA CRUZ | G49: =VLOOKUP($F49,Poblacion!$E$8:$I$87,2,FALSE) -> 442 | H49: =VLOOKUP($F49,Poblacion!$E$8:$I$87,4,FALSE) -> 215 | I49: =VLOOKUP($F49,Poblacion!$E$8:$I$87,5,FALSE) -> 227 | K49: CAUJUL | L49: =N49 -> 1052 | M49: P.S. CAUJUL | N49: =VLOOKUP(M49,Poblacion!$E$5:$I$88,2,FALSE) -> 1052 | O49: =VLOOKUP(M49,Poblacion!$E$5:$I$88,4,FALSE) -> 521 | P49: =VLOOKUP(M49,Poblacion!$E$5:$I$88,5,FALSE) -> 531
D50: L.PRADO | F50: P.S. HUANANGUI | G50: =VLOOKUP($F50,Poblacion!$E$8:$I$87,2,FALSE) -> 462 | H50: =VLOOKUP($F50,Poblacion!$E$8:$I$87,4,FALSE) -> 225 | I50: =VLOOKUP($F50,Poblacion!$E$8:$I$87,5,FALSE) -> 237 | K50: NAVAN | L50: 1210 | M50: P.S. NAVAN | N50: =VLOOKUP(M50,Poblacion!$E$5:$I$88,2,FALSE) -> 1210 | O50: =VLOOKUP(M50,Poblacion!$E$5:$I$88,4,FALSE) -> 600 | P50: =VLOOKUP(M50,Poblacion!$E$5:$I$88,5,FALSE) -> 610
D51: COCHAMARCA | E51: =SUM(G51:G53) -> 1632 | F51: P.S. COCHAMARCA | G51: =VLOOKUP($F51,Poblacion!$E$8:$I$87,2,FALSE) -> 653 | H51: =VLOOKUP($F51,Poblacion!$E$8:$I$87,4,FALSE) -> 321 | I51: =VLOOKUP($F51,Poblacion!$E$8:$I$87,5,FALSE) -> 332 | K51: CHECRAS | L51: 1808 | M51: P.S. PUÑUN | N51: =VLOOKUP(M51,Poblacion!$E$5:$I$88,2,FALSE) -> 1808 | O51: =VLOOKUP(M51,Poblacion!$E$5:$I$88,4,FALSE) -> 894 | P51: =VLOOKUP(M51,Poblacion!$E$5:$I$88,5,FALSE) -> 914
D52: COCHAMARCA | F52: P.S. COLCAPAMPA | G52: =VLOOKUP($F52,Poblacion!$E$8:$I$87,2,FALSE) -> 734 | H52: =VLOOKUP($F52,Poblacion!$E$8:$I$87,4,FALSE) -> 361 | I52: =VLOOKUP($F52,Poblacion!$E$8:$I$87,5,FALSE) -> 373 | K52: PACCHO | L52: =SUM(N52:N55) -> 2223 | M52: P.S. PACCHO | N52: =VLOOKUP(M52,Poblacion!$E$5:$I$88,2,FALSE) -> 778 | O52: =VLOOKUP(M52,Poblacion!$E$5:$I$88,4,FALSE) -> 384 | P52: =VLOOKUP(M52,Poblacion!$E$5:$I$88,5,FALSE) -> 394
D53: COCHAMARCA | F53: P.S. YARUCAYA | G53: =VLOOKUP($F53,Poblacion!$E$8:$I$87,2,FALSE) -> 245 | H53: =VLOOKUP($F53,Poblacion!$E$8:$I$87,4,FALSE) -> 117 | I53: =VLOOKUP($F53,Poblacion!$E$8:$I$87,5,FALSE) -> 128 | K53: PACCHO | M53: P.S. LACSANGA | N53: =VLOOKUP(M53,Poblacion!$E$5:$I$88,2,FALSE) -> 667 | O53: =VLOOKUP(M53,Poblacion!$E$5:$I$88,4,FALSE) -> 326 | P53: =VLOOKUP(M53,Poblacion!$E$5:$I$88,5,FALSE) -> 341
D54: IHUARI - ACOTAMA | E54: =G54 -> 1131 | F54: IHUARI - ACOTAMA | G54: =VLOOKUP($F54,Poblacion!$E$8:$I$87,2,FALSE) -> 1131 | H54: =VLOOKUP($F54,Poblacion!$E$8:$I$87,4,FALSE) -> 560 | I54: =VLOOKUP($F54,Poblacion!$E$8:$I$87,5,FALSE) -> 571 | K54: PACCHO | M54: P.S. AYARANGA | N54: =VLOOKUP(M54,Poblacion!$E$5:$I$88,2,FALSE) -> 333 | O54: =VLOOKUP(M54,Poblacion!$E$5:$I$88,4,FALSE) -> 161 | P54: =VLOOKUP(M54,Poblacion!$E$5:$I$88,5,FALSE) -> 172
D55: TOTAL MICRORED SAYAN | G55: =SUM(G40:G54) -> 29238 | H55: =SUM(H40:H54) -> 14449 | I55: 14789 | K55: PACCHO | M55: P.S. MUZGA | N55: =VLOOKUP(M55,Poblacion!$E$5:$I$88,2,FALSE) -> 445 | O55: =VLOOKUP(M55,Poblacion!$E$5:$I$88,4,FALSE) -> 218 | P55: =VLOOKUP(M55,Poblacion!$E$5:$I$88,5,FALSE) -> 227
D56: =K33 -> Elaboración: Área de Estadística - RIS Huaura Oyón. | K56: S.LEONOR | L56: =SUM(N56:N58) -> 1477 | M56: P.S. CHIUCHIN | N56: =VLOOKUP(M56,Poblacion!$E$5:$I$88,2,FALSE) -> 886 | O56: =VLOOKUP(M56,Poblacion!$E$5:$I$88,4,FALSE) -> 437 | P56: =VLOOKUP(M56,Poblacion!$E$5:$I$88,5,FALSE) -> 449
K57: S.LEONOR | M57: P.S. PARQUIN | N57: =VLOOKUP(M57,Poblacion!$E$5:$I$88,2,FALSE) -> 443 | O57: =VLOOKUP(M57,Poblacion!$E$5:$I$88,4,FALSE) -> 214 | P57: =VLOOKUP(M57,Poblacion!$E$5:$I$88,5,FALSE) -> 229
K58: S.LEONOR | M58: P.S. JUCUL | N58: =VLOOKUP(M58,Poblacion!$E$5:$I$88,2,FALSE) -> 148 | O58: =VLOOKUP(M58,Poblacion!$E$5:$I$88,4,FALSE) -> 69 | P58: =VLOOKUP(M58,Poblacion!$E$5:$I$88,5,FALSE) -> 79
K59: TOTAL MICRORED CHURIN - OYON | N59: =SUM(N40:N58) -> 27008 | O59: =SUM(O40:O58) -> 13337 | P59: 13671
K60: =K33 -> Elaboración: Área de Estadística - RIS Huaura Oyón.
